Body Name,Body,Service Level,Expense Type,Expense Code,Narrative,Date,Transaction Number,Amount,Capital and Revenue,Supplier Name,Supplier ID
South Ribble Borough Council,http://statistics.data.gov.uk/id/local-authority/30UE,Capital,Cap Vehicles,C440,"As per quote, 8x 1100ltr wheeled bins grey/black with red lid, orange lid, grey/black lid, 12x 360ltr wheeled bins grey black with grey/black lid",22/12/2021,0000474217,474.72,Revenue,A&C Weber UK Ltd,0
South Ribble Borough Council,http://statistics.data.gov.uk/id/local-authority/30UE,Recycling,Materials General,4040,"As per quote, 8x 1100ltr wheeled bins grey/black with red lid, orange lid, grey/black lid, 12x 360ltr wheeled bins grey black with grey/black lid",22/12/2021,0000474217,"3,959.55",Revenue,A&C Weber UK Ltd,0
South Ribble Borough Council,http://statistics.data.gov.uk/id/local-authority/30UE,Recreation & Sport,Professional Fees,4510,"2X attendees safegaurding training and 4X attendees first aid training, 258.00 NO VAT",15/12/2021,0000473992,258.00,Revenue,ACTIVE LANCASHIRE,0
South Ribble Borough Council,http://statistics.data.gov.uk/id/local-authority/30UE,Central Support Services,Reactive Repair & Maintenance,2020,Labour only 27/10/2021 Attend site to carry out EICR as instructed and issue report Leyland Civic Centre as per NAME REDACTED,10/12/2021,0000473862,"7,798.50",Revenue,Adlec Limited,0
South Ribble Borough Council,http://statistics.data.gov.uk/id/local-authority/30UE,Surplus or Deficit on Trading,Reactive Repair & Maintenance,2020,"ADDRESS REDACTED, Disconnect and remove existing three phase distribution boards. Install a twelve way three phase Wylex distribution board",08/12/2021,0000473863,518.65,Revenue,Adlec Limited,0
South Ribble Borough Council,http://statistics.data.gov.uk/id/local-authority/30UE,Surplus or Deficit on Trading,Reactive Repair & Maintenance,2020,Materials,08/12/2021,0000473863,825.00,Revenue,Adlec Limited,0
South Ribble Borough Council,http://statistics.data.gov.uk/id/local-authority/30UE,Central Support Services,Materials General,4040,"1x Duel mask fly Wheel, 2 piece clutch kit, clutch slave cylinder, BJ66 MKL, JFC17524",08/12/2021,0000473773,737.94,Revenue,AFL (AUTO FACTORS) LTD,0
South Ribble Borough Council,http://statistics.data.gov.uk/id/local-authority/30UE,Surplus or Deficit on Trading,Reactive Repair & Maintenance,2020,To attend and repair leaking valve within the roof space @ Moss side community centre. As per NAME REDACTED,01/12/2021,0000473529,295.00,Revenue,Ainscoe Plumbing & Heating Ltd,0
South Ribble Borough Council,http://statistics.data.gov.uk/id/local-authority/30UE,Central Support Services,Reactive Repair & Maintenance,2020,"Neighbour hood services building, moss side industrial estate as per NAME REDACTED To supply and fit new Zip hydroboil in 1st floor kitchen",01/12/2021,0000473530,950.00,Revenue,Ainscoe Plumbing & Heating Ltd,0
South Ribble Borough Council,http://statistics.data.gov.uk/id/local-authority/30UE,Surplus or Deficit on Trading,Reactive Repair & Maintenance,2020,"ADDRESS REDACTED, Invoice Date: 1st Dec 2021 as per NAMES REDACTED, Arrange for Vaillant to attend site and carry out repair on boiler",08/12/2021,0000473865,320.00,Revenue,Ainscoe Plumbing & Heating Ltd,0
South Ribble Borough Council,http://statistics.data.gov.uk/id/local-authority/30UE,Recreation & Sport,Reactive Repair & Maintenance,2020,"External Preparation & Painting Works, Bamber Bridge Leisure Centre, South Ribble Tennis Centre, Penwortham, Leyland Leisure Centre",08/12/2021,0000473836,"20,707.00",Revenue,Alfred Bagnall & Sons (North West) Limited,0
South Ribble Borough Council,http://statistics.data.gov.uk/id/local-authority/30UE,Local Tax Collection,Bank Charges,4811,post office,08/12/2021,0000473778,619.62,Revenue,ALLPAY LTD,0
South Ribble Borough Council,http://statistics.data.gov.uk/id/local-authority/30UE,Local Tax Collection,Bank Charges,4811,paypoint,08/12/2021,0000473778,69.55,Revenue,ALLPAY LTD,0
South Ribble Borough Council,http://statistics.data.gov.uk/id/local-authority/30UE,Local Tax Collection,Bank Charges,4811,webconn,08/12/2021,0000473778,46.00,Revenue,ALLPAY LTD,0
South Ribble Borough Council,http://statistics.data.gov.uk/id/local-authority/30UE,Recreation & Sport,Professional Fees,4510,"Course: Virtual In-house Chair-based Exercise Instructor, Amac Certificate in Chair-based Exercise Instructing, Monday 13th December 2021",15/12/2021,0000473965,"1,800.00",Revenue,Amacsports Limited,0
South Ribble Borough Council,http://statistics.data.gov.uk/id/local-authority/30UE,Open Spaces,GM Refurbishment,4657,90m2 Hardwood Play Area Chips on 8 wheel bulk tipper to Dob Lane (PR4 5QL) @ 44.00/m2,01/12/2021,0000473645,"3,960.00",Revenue,AMENITY HORTICULTURAL SERVICES LTD,0
South Ribble Borough Council,http://statistics.data.gov.uk/id/local-authority/30UE,Open Spaces,GM Refurbishment,4657,44m2 Hardwood Play Area Chips on 8 wheel bulk tipper to Withy Grove (PR5 6YJ) @ 43.50,01/12/2021,0000473646,"1,914.00",Revenue,AMENITY HORTICULTURAL SERVICES LTD,0
South Ribble Borough Council,http://statistics.data.gov.uk/id/local-authority/30UE,Open Spaces,GM Refurbishment,4657,70m2 Hardwood Play Area Chips on 8 wheel bulk tipper to Worden Park (PR25 3DH) @ 46.50/m2,01/12/2021,0000473647,"3,255.00",Revenue,AMENITY HORTICULTURAL SERVICES LTD,0
South Ribble Borough Council,http://statistics.data.gov.uk/id/local-authority/30UE,Open Spaces,GM Refurbishment,4657,83m2 Hardwood Play Chips on 8 wheel bulk tipper to Gregson Lane (PR5 0DP) @ 44.50/m2,01/12/2021,0000473648,"3,693.50",Revenue,AMENITY HORTICULTURAL SERVICES LTD,0
South Ribble Borough Council,http://statistics.data.gov.uk/id/local-authority/30UE,Open Spaces,GM Refurbishment,4657,83m2 Hardwood Play Area Chips on 8 wheel bulk tipper to Holland House Farm (PR5 4NJ) @ 44.50m2,01/12/2021,0000473649,"3,693.50",Revenue,AMENITY HORTICULTURAL SERVICES LTD,0
South Ribble Borough Council,http://statistics.data.gov.uk/id/local-authority/30UE,Recreation & Sport,Water Charges(Metered),2511,7/10 to 6/11/21,22/12/2021,0000474230,394.90,Revenue,Anglian Water Business (National) t/as Wave Utilit,0
South Ribble Borough Council,http://statistics.data.gov.uk/id/local-authority/30UE,Surplus or Deficit on Trading,Reactive Repair & Maintenance,2020,"Asbestos management Survey of Moss Side Village Hall, Leyland, PR26 7SG.",01/12/2021,0000473468,415.00,Revenue,APEC Environmental Ltd,0
South Ribble Borough Council,http://statistics.data.gov.uk/id/local-authority/30UE,Capital,Capital Grant,C570,DFG WORK TO COMPLETE AN ADAPTATION FOR A RAMP AND BATHROOM WORKS AT ADDRESS REDACTED AS PER SRBC PLANS,15/12/2021,0000473998,"9,360.00",Revenue,APG DOMESTIC SERVICES,0
South Ribble Borough Council,http://statistics.data.gov.uk/id/local-authority/30UE,Capital,Cap Contract Payment,C230,for the delivery to archaeological services to discharge planning conditions for the Worden Hall refurbishment,10/12/2021,0000473548,"3,975.00",Revenue,Archaeological Research Services Ltd,0
South Ribble Borough Council,http://statistics.data.gov.uk/id/local-authority/30UE,Capital,Cap Contract Payment,C230,Costs for Archaeological watching brief on Worden hall demolition and excavation.,01/12/2021,0000473603,"3,975.00",Revenue,Archaeological Research Services Ltd,0
South Ribble Borough Council,http://statistics.data.gov.uk/id/local-authority/30UE,Corporate Management,Publicity & Promotion,4842,A5 8pp Brochure � Are You Ready For Winter? 2021/22,22/12/2021,0000474194,270.00,Revenue,B & D PRINT SERVICES LTD,0
South Ribble Borough Council,http://statistics.data.gov.uk/id/local-authority/30UE,Central Support Services,Materials General,4040,1 x roller 1 x LED Beacon TMF06JD JFC17450,08/12/2021,0000473061,449.41,Revenue,BALMERS GM LTD,0
South Ribble Borough Council,http://statistics.data.gov.uk/id/local-authority/30UE,Regulatory Services,Reactive Repair & Maintenance,2020,To attend Withy Grove toilets and replace lights as per NAME REDACTED request  350. This is to replace 4 x lights to LED,08/12/2021,0000473679,350.00,Revenue,BELEC ELECTRICAL LTD,0
South Ribble Borough Council,http://statistics.data.gov.uk/id/local-authority/30UE,Surplus or Deficit on Trading,Reactive Repair & Maintenance,2020,To supply and fit 4-5 maglock (keypads). as per instruction from Jason Ascroft,15/12/2021,0000473686,297.00,Revenue,BELEC ELECTRICAL LTD,0
South Ribble Borough Council,http://statistics.data.gov.uk/id/local-authority/30UE,Community Development,External Contractors Charges,4570,Install AED cabinets at the 14 discussed sites.,22/12/2021,0000473687,"2,100.00",Revenue,BELEC ELECTRICAL LTD,0
South Ribble Borough Council,http://statistics.data.gov.uk/id/local-authority/30UE,Surplus or Deficit on Trading,Reactive Repair & Maintenance,2020,Please undertake works to the floodlights at Middleforth industrial estate as per your quotation dated 9th November,15/12/2021,0000474038,599.00,Revenue,BELEC ELECTRICAL LTD,0
South Ribble Borough Council,http://statistics.data.gov.uk/id/local-authority/30UE,Capital,Cap Contract Payment,C230,21:00 Hours for the installation of replacement lights to areas discussed with NAME REDACTED 42 Products LED light fittings 5 foot,15/12/2021,0000474043,"1,911.00",Revenue,BELEC ELECTRICAL LTD,0
South Ribble Borough Council,http://statistics.data.gov.uk/id/local-authority/30UE,Capital,Cap Contract Payment,C230,"Work: archaeological evaluation of the east retaining wall at St. Mary�s, Penwortham, Amount: 8000 as per NAME REDACTED",01/12/2021,0000473565,"6,850.00",Revenue,Bluestone Arachaeology,0
South Ribble Borough Council,http://statistics.data.gov.uk/id/local-authority/30UE,Capital,Cap Contract Payment,C230,"Work: archaeological evaluation of the east retaining wall at St. Mary�s, Penwortham, Amount: 8000 as per NAME REDACTED",08/12/2021,0000473779,750.00,Revenue,Bluestone Arachaeology,0
South Ribble Borough Council,http://statistics.data.gov.uk/id/local-authority/30UE,Capital,Cap Contract Payment,C230,"Work: Headstone survey, GPR survey and reports at St. Mary�s Church graveyard as Per NAME REDACTED request Cost: 4000",08/12/2021,0000473780,"3,130.00",Revenue,Bluestone Arachaeology,0
South Ribble Borough Council,http://statistics.data.gov.uk/id/local-authority/30UE,Capital,Cap Contract Payment,C230,"Room hire and refreshments for Leyland Town Deal Consultations incl 24.11.21, 25.11.21, 23.02.22 and 24.02.22.",22/12/2021,0000474169,640.00,Revenue,BRITISH COMMERCIAL VEHICLE MUSEUM,0
South Ribble Borough Council,http://statistics.data.gov.uk/id/local-authority/30UE,Surplus or Deficit on Trading,Reactive Repair & Maintenance,2020,"Moss side community center, PR267SN, replace pump, heat exchanger seals and service valves",15/12/2021,0000473974,607.92,Revenue,BRITISH GAS SERVICES (COMMERCIAL) LTD,0
South Ribble Borough Council,http://statistics.data.gov.uk/id/local-authority/30UE,Surplus or Deficit on Trading,Planned Annual Repair & Maintenance,2021,"Annual contract 2021 / 2022 for care plan 2 at Moss Side Community Centre, Dunkirk Lane, Leyland",22/12/2021,0000474224,284.52,Revenue,BRITISH GAS SERVICES (COMMERCIAL) LTD,0
South Ribble Borough Council,http://statistics.data.gov.uk/id/local-authority/30UE,Open Spaces,GM Refurbishment,4657,4 No Orange Twin Wall Cable Duct,22/12/2021,0000473927,438.04,Revenue,C & W BERRY LTD,0
South Ribble Borough Council,http://statistics.data.gov.uk/id/local-authority/30UE,Open Spaces,GM Refurbishment,4657,7 No. 50M Twinwall cable duct in orange,22/12/2021,0000473930,657.06,Revenue,C & W BERRY LTD,0
South Ribble Borough Council,http://statistics.data.gov.uk/id/local-authority/30UE,Central Support Services,Software Licensing,4243,"Software maintenance for the period 01/04/2021 to 31/03/2022, All Systems Benefits, Overpayments, C Tax, NDR, RBV, Advantage Digital",01/12/2021,0000473313,"73,065.62",Revenue,CAPITA BUSINESS SERVICES LTD,0
South Ribble Borough Council,http://statistics.data.gov.uk/id/local-authority/30UE,Central Support Services,Agency Staff,1121,Planning consultant to deal with Planning applications for the next 6 months,01/12/2021,0000473514,"6,315.98",Revenue,CAPITA PROPERTY AND INFRASTRUCTURE LTD,0
South Ribble Borough Council,http://statistics.data.gov.uk/id/local-authority/30UE,Central Support Services,Software Licensing,4243,Audit - IDEA 10 Single User (dongle): 1 x licence for the period 01/11/2021 - 31/10/2022,22/12/2021,0000473732,750.00,Revenue,Caseware UK,0
South Ribble Borough Council,http://statistics.data.gov.uk/id/local-authority/30UE,Short Term Creditors,Manual Control,0001,,10/12/2021,0000473939,"2,119.18",Revenue,Cavity Extraction Limited,0
South Ribble Borough Council,http://statistics.data.gov.uk/id/local-authority/30UE,Community Development,Core Fund,4861,To provide stage and lighting at Penwortham Christmas Event,15/12/2021,0000473928,"1,120.00",Revenue,CDS Events,0
South Ribble Borough Council,http://statistics.data.gov.uk/id/local-authority/30UE,Recreation & Sport,Reactive Repair & Maintenance,2020,"Replace two old fashioned fire alarm call points with new modern versions which can be tested. Price to include 4 hours labour, box assembly x 2",08/12/2021,0000473071,425.30,Revenue,CHUBB LTD,0
South Ribble Borough Council,http://statistics.data.gov.uk/id/local-authority/30UE,Central Support Services,Reactive Repair & Maintenance,2020,2021 / 2022 Cost for 3 x room integrity tests at the Civic Centre as per your ref SQCMMB050319-B,08/12/2021,0000473706,"1,215.30",Revenue,CHUBB LTD,0
South Ribble Borough Council,http://statistics.data.gov.uk/id/local-authority/30UE,Central Support Services,Planned Annual Repair & Maintenance,2021,2021 / 2022 fees for the service of the gas suppression system at the Civic Centre - ref SQCMMB050319-A,10/12/2021,0000473866,312.00,Revenue,CHUBB LTD,0
South Ribble Borough Council,http://statistics.data.gov.uk/id/local-authority/30UE,Central Support Services,External Contractors Charges,4570,Spec Repair PO20ZRZ JFC17471,08/12/2021,0000473719,"7,748.86",Revenue,CICELEY COMMERCIALS LTD,0
South Ribble Borough Council,http://statistics.data.gov.uk/id/local-authority/30UE,Central Support Services,Software Licensing,4243,Civica Housing module upgrade SRBC element of the shared costs of the Select Move partnership,01/12/2021,0000473184,"9,204.47",Revenue,CIVICA UK LTD,0
South Ribble Borough Council,http://statistics.data.gov.uk/id/local-authority/30UE,Homelessness,Temporary Accommodation,5311,REDACTED,15/12/2021,0000474075,556.50,Revenue,CLAREMONT HOTEL,0
South Ribble Borough Council,http://statistics.data.gov.uk/id/local-authority/30UE,Homelessness,Temporary Accommodation,5311,REDACTED,15/12/2021,0000474079,315.00,Revenue,CLAREMONT HOTEL,0
South Ribble Borough Council,http://statistics.data.gov.uk/id/local-authority/30UE,Homelessness,Temporary Accommodation,5311,REDACTED,15/12/2021,0000474080,315.00,Revenue,CLAREMONT HOTEL,0
South Ribble Borough Council,http://statistics.data.gov.uk/id/local-authority/30UE,Homelessness,Temporary Accommodation,5311,REDACTED,22/12/2021,0000474199,630.00,Revenue,CLAREMONT HOTEL,0
South Ribble Borough Council,http://statistics.data.gov.uk/id/local-authority/30UE,Homelessness,Temporary Accommodation,5311,REDACTED,22/12/2021,0000474200,556.50,Revenue,CLAREMONT HOTEL,0
South Ribble Borough Council,http://statistics.data.gov.uk/id/local-authority/30UE,Homelessness,Temporary Accommodation,5311,REDACTED,22/12/2021,0000474201,"1,035.00",Revenue,CLAREMONT HOTEL,0
South Ribble Borough Council,http://statistics.data.gov.uk/id/local-authority/30UE,Homelessness,Temporary Accommodation,5311,REDACTED,22/12/2021,0000474202,343.00,Revenue,CLAREMONT HOTEL,0
South Ribble Borough Council,http://statistics.data.gov.uk/id/local-authority/30UE,Homelessness,Temporary Accommodation,5311,REDACTED,22/12/2021,0000474203,441.00,Revenue,CLAREMONT HOTEL,0
South Ribble Borough Council,http://statistics.data.gov.uk/id/local-authority/30UE,Homelessness,Temporary Accommodation,5311,REDACTED,22/12/2021,0000474204,855.00,Revenue,CLAREMONT HOTEL,0
South Ribble Borough Council,http://statistics.data.gov.uk/id/local-authority/30UE,Homelessness,Contributions to Other Bodies,4730,Cost of replacement items SRBC placement NAME REDACTED,22/12/2021,0000474205,551.99,Revenue,CLAREMONT HOTEL,0
South Ribble Borough Council,http://statistics.data.gov.uk/id/local-authority/30UE,Homelessness,Contributions to Other Bodies,4730,NAME REDACTED discharge from hospital 30.11.2021,22/12/2021,0000474206,315.00,Revenue,CLAREMONT HOTEL,0
South Ribble Borough Council,http://statistics.data.gov.uk/id/local-authority/30UE,Homelessness,Contributions to Other Bodies,4730,NAME REDACTED - Emergency placement,22/12/2021,0000474207,630.00,Revenue,CLAREMONT HOTEL,0
South Ribble Borough Council,http://statistics.data.gov.uk/id/local-authority/30UE,Capital,Cap Contract Payment,C230,"For the provision of works to the pavilion, car park extension and associated works at Bamber Bridge sports hub",10/12/2021,0000473896,"86,512.51",Revenue,Code Building Solutions Limited,0
South Ribble Borough Council,http://statistics.data.gov.uk/id/local-authority/30UE,Democratic Represent and  Mgnt,Operational Equip & Tools,4010,"Dishwasher, Hood type, Pass-thru, Model No C2035WS, Service - disconnect and remove existing machine and fitting new machine",22/12/2021,0000474157,"3,684.36",Revenue,COMMERCIAL KITCHEN SERVICES LTD,0
South Ribble Borough Council,http://statistics.data.gov.uk/id/local-authority/30UE,Central Support Services,Repair Costs General,4050,Trade Bins - WHEELS - NORMAL,22/12/2021,0000473737,96.00,Revenue,CONTAINER CARE SOLUTIONS,0
South Ribble Borough Council,http://statistics.data.gov.uk/id/local-authority/30UE,Central Support Services,Repair Costs General,4050,Trade Bins - WHEELS - BRAKED,22/12/2021,0000473737,174.00,Revenue,CONTAINER CARE SOLUTIONS,0
South Ribble Borough Council,http://statistics.data.gov.uk/id/local-authority/30UE,Recreation & Sport,Reactive Repair & Maintenance,2020,"Treadmill Area, Supply and fit a new fan motors as required. 2 Men Plus Scaffold, For the Sum of: 2,124.00+VAT",10/12/2021,0000473915,"2,124.00",Revenue,Coolair Services Limited,0
South Ribble Borough Council,http://statistics.data.gov.uk/id/local-authority/30UE,Recreation & Sport,Gas,2304,oct-nov21,10/12/2021,0000473594,482.67,Revenue,Corona Energy Retail 4 Limited,0
South Ribble Borough Council,http://statistics.data.gov.uk/id/local-authority/30UE,Recreation & Sport,Gas,2304,oct-nov21,10/12/2021,0000473595,"2,720.20",Revenue,Corona Energy Retail 4 Limited,0
South Ribble Borough Council,http://statistics.data.gov.uk/id/local-authority/30UE,Local Tax Collection,Stationery General,4130,Stationery November to March 2022,01/12/2021,0000473160,353.49,Revenue,CRITIQOM,0
South Ribble Borough Council,http://statistics.data.gov.uk/id/local-authority/30UE,Local Tax Collection,Postage General,4291,Postage November to March 2022,01/12/2021,0000473544,639.48,Revenue,CRITIQOM,0
South Ribble Borough Council,http://statistics.data.gov.uk/id/local-authority/30UE,Local Tax Collection,Stationery General,4130,Stationery November to March 2022,01/12/2021,0000473545,268.89,Revenue,CRITIQOM,0
South Ribble Borough Council,http://statistics.data.gov.uk/id/local-authority/30UE,Local Tax Collection,Stationery General,4130,Stationery November to March 2022,01/12/2021,0000473626,495.52,Revenue,CRITIQOM,0
South Ribble Borough Council,http://statistics.data.gov.uk/id/local-authority/30UE,Local Tax Collection,Postage General,4291,Postage November to March 2022,01/12/2021,0000473627,649.08,Revenue,CRITIQOM,0
South Ribble Borough Council,http://statistics.data.gov.uk/id/local-authority/30UE,Capital,Cap Contract Payment,C230,Leyland Town Deal November 2021 Consultations Letter & Flyer Print and Distribution,08/12/2021,0000473634,"5,958.84",Revenue,CRITIQOM,0
South Ribble Borough Council,http://statistics.data.gov.uk/id/local-authority/30UE,Local Tax Collection,Postage General,4291,Postage November to March 2022,15/12/2021,0000473972,429.25,Revenue,CRITIQOM,0
South Ribble Borough Council,http://statistics.data.gov.uk/id/local-authority/30UE,Local Tax Collection,Postage General,4291,Postage November to March 2022,22/12/2021,0000474197,"1,180.30",Revenue,CRITIQOM,0
South Ribble Borough Council,http://statistics.data.gov.uk/id/local-authority/30UE,Central Support Services,Legal,4821,PROFESSIONAL SERVICES IN RELATION TO AN EMPLOYMENT TRIBUNAL MATTER,01/12/2021,0000473323,"9,072.00",Revenue,DAC BEACHCROFT LLP,0
South Ribble Borough Council,http://statistics.data.gov.uk/id/local-authority/30UE,Central Support Services,Legal,4821,Professional Fees for Employment Tribunal Matter,22/12/2021,0000474227,830.35,Revenue,DAC BEACHCROFT LLP,0
South Ribble Borough Council,http://statistics.data.gov.uk/id/local-authority/30UE,Central Support Services,Reactive Repair & Maintenance,2020,"Replace Expired PRV's, Faulty DP Switch. PRV's connected via a single port, refrigerant has to be recovered prior to removal and replacement",08/12/2021,0000473570,"3,307.50",Revenue,DAIKIN APPLIED SERVICE,0
South Ribble Borough Council,http://statistics.data.gov.uk/id/local-authority/30UE,Central Support Services,Planned Annual Repair & Maintenance,2021,"Annual Contract for maintenance, 1x  McSmart 240cr Industrial Water Chiller, 1x McQuay Air Handling Unit as per maintenance package",15/12/2021,0000474039,673.89,Revenue,DAIKIN APPLIED SERVICE,0
South Ribble Borough Council,http://statistics.data.gov.uk/id/local-authority/30UE,Homelessness,Contributions to Other Bodies,4730,NAME REDACTED - 19/11/21 - 17/12/21,01/12/2021,0000473556,340.00,Revenue,David Iddon & Corrina Kellett,0
South Ribble Borough Council,http://statistics.data.gov.uk/id/local-authority/30UE,Homelessness,Contributions to Other Bodies,4730,NAME REDACTED 17/12/2021 - 14/01/2022,22/12/2021,0000474236,340.00,Revenue,David Iddon & Corrina Kellett,0
South Ribble Borough Council,http://statistics.data.gov.uk/id/local-authority/30UE,Central Support Services,Materials General,4040,1 x fuel tank strap 1 x fuel tank strap strip backing VA19KOX JFC17606,08/12/2021,0000473660,284.20,Revenue,DENNIS EAGLE LTD,0
South Ribble Borough Council,http://statistics.data.gov.uk/id/local-authority/30UE,Central Support Services,Materials General,4040,1 x ad blu sender unit JFC17600 VO65KPZ,22/12/2021,0000474071,508.29,Revenue,DENNIS EAGLE LTD,0
South Ribble Borough Council,http://statistics.data.gov.uk/id/local-authority/30UE,Central Support Services,Materials General,4040,"1X SERVICE KIT, VU11 HSZ, JFC17636 (NAME REDACTED)",22/12/2021,0000474189,584.33,Revenue,DENNIS EAGLE LTD,0
South Ribble Borough Council,http://statistics.data.gov.uk/id/local-authority/30UE,Central Support Services,Furniture,4017,"Please provide one sit and stand desk with heart shaped top 117H with lockable castors,  Silver frame/Maple MPC: NAME REDACTED",01/12/2021,0000472899,312.00,Revenue,Diamond Business Interiors Ltd,0
South Ribble Borough Council,http://statistics.data.gov.uk/id/local-authority/30UE,Capital,Cap Contract Payment,C230,Rental of Temp Caf� unit for �Folly caf� Worden park. Unit will be supplied and installed and removed from site upon termination of the agreement.,08/12/2021,0000473767,"2,060.00",Revenue,DP STRUCTURES LTD,0
South Ribble Borough Council,http://statistics.data.gov.uk/id/local-authority/30UE,Central Support Services,Lifts - R&M,2032,Annual contract 2021/22 for the maintenance of the lifts at the Civic Centre,01/12/2021,0000473610,447.50,Revenue,E A Foulds Limited,0
South Ribble Borough Council,http://statistics.data.gov.uk/id/local-authority/30UE,Central Support Services,Lifts - R&M,2032,Annual contract 2021/22 for the maintenance of the lifts at the Civic Centre,08/12/2021,0000473709,447.50,Revenue,E A Foulds Limited,0
South Ribble Borough Council,http://statistics.data.gov.uk/id/local-authority/30UE,Central Support Services,Reference Books,4142,LOCAL GOVERNMENT CHRONICLE CORPORATE SUBSCRIPTION DIGITAL - 6 DECEMBER 2021 - 3 DECEMBER 2022,15/12/2021,0000474024,942.50,Revenue,Emap Publishing Ltd,0
South Ribble Borough Council,http://statistics.data.gov.uk/id/local-authority/30UE,Central Support Services,Reference Books,4142,LOCAL GOVERNMENT CHRONICLE CORPORATE SUBSCRIPTION (PRINT) - 6 DECEMBER 2021 - 3 DECEMBER 2021,15/12/2021,0000474024,942.89,Revenue,Emap Publishing Ltd,0
South Ribble Borough Council,http://statistics.data.gov.uk/id/local-authority/30UE,Capital,Cap Contract Payment,C230,For the provision of updated Drawings and Specification to the McKenzie Contract (delivery prior to contract signing),22/12/2021,0000474222,"6,300.00",Revenue,Envision Energy Ltd,0
South Ribble Borough Council,http://statistics.data.gov.uk/id/local-authority/30UE,Central Support Services,Materials General,4040,"1x replacement slide hydraulic ram, PJ62 UCG, JFC15493",01/12/2021,0000473546,325.00,Revenue,Euro Municipals Ltd,0
South Ribble Borough Council,http://statistics.data.gov.uk/id/local-authority/30UE,Central Support Services,Materials General,4040,1 axle VU11 HSZ JFC17636,22/12/2021,0000474035,"1,500.00",Revenue,Euro Municipals Ltd,0
South Ribble Borough Council,http://statistics.data.gov.uk/id/local-authority/30UE,Community Development,Publicity & Promotion,4842,Father Christmas 2021,15/12/2021,0000474026,450.00,Revenue,EVENTS LIVE,0
South Ribble Borough Council,http://statistics.data.gov.uk/id/local-authority/30UE,Central Support Services,Materials General,4040,12 x deck pin bushes-BIN1040,08/12/2021,0000473741,31.75,Revenue,F R SHARROCK LTD,0
South Ribble Borough Council,http://statistics.data.gov.uk/id/local-authority/30UE,Central Support Services,Materials General,4040,6 x deck pins- BIN1041,08/12/2021,0000473741,102.39,Revenue,F R SHARROCK LTD,0
South Ribble Borough Council,http://statistics.data.gov.uk/id/local-authority/30UE,Central Support Services,Materials General,4040,35x Sole plates-BIN1265,08/12/2021,0000473741,"1,083.29",Revenue,F R SHARROCK LTD,0
South Ribble Borough Council,http://statistics.data.gov.uk/id/local-authority/30UE,Central Support Services,Materials General,4040,245 x Sole plate screws- BIN1114,08/12/2021,0000473741,70.56,Revenue,F R SHARROCK LTD,0
South Ribble Borough Council,http://statistics.data.gov.uk/id/local-authority/30UE,Central Support Services,Materials General,4040,37 x Bearings BIN-1007,08/12/2021,0000473741,162.50,Revenue,F R SHARROCK LTD,0
South Ribble Borough Council,http://statistics.data.gov.uk/id/local-authority/30UE,Central Support Services,Materials General,4040,10 x service kit- BIN1230,08/12/2021,0000473741,"1,097.10",Revenue,F R SHARROCK LTD,0
South Ribble Borough Council,http://statistics.data.gov.uk/id/local-authority/30UE,Waste Collection,External Contractors Charges,4570,Additional Waste Collections- November 2021.,08/12/2021,0000473818,423.50,Revenue,FCC Environment Services (UK) Ltd,0
South Ribble Borough Council,http://statistics.data.gov.uk/id/local-authority/30UE,Waste Collection,External Contractors Charges,4570,retention,08/12/2021,0000473818,-21.18,Revenue,FCC Environment Services (UK) Ltd,0
South Ribble Borough Council,http://statistics.data.gov.uk/id/local-authority/30UE,Waste Collection,External Contractors Charges,4570,Residual Waste Collections - November 2021,15/12/2021,0000473923,"45,839.72",Revenue,FCC Environment Services (UK) Ltd,0
South Ribble Borough Council,http://statistics.data.gov.uk/id/local-authority/30UE,Recycling,External Contractors Charges,4570,Dry Recyclable non-terrace- November 2021,15/12/2021,0000473923,"46,926.36",Revenue,FCC Environment Services (UK) Ltd,0
South Ribble Borough Council,http://statistics.data.gov.uk/id/local-authority/30UE,Recycling,External Contractors Charges,4570,Dry recyclable terraced- November 2021,15/12/2021,0000473923,"2,233.78",Revenue,FCC Environment Services (UK) Ltd,0
South Ribble Borough Council,http://statistics.data.gov.uk/id/local-authority/30UE,Recycling,External Contractors Charges,4570,Organic Waste- non terraced- November 2021,15/12/2021,0000473923,"32,490.08",Revenue,FCC Environment Services (UK) Ltd,0
South Ribble Borough Council,http://statistics.data.gov.uk/id/local-authority/30UE,Trade Waste,External Contractors Charges,4570,Schedule 2 Properties- November 2021,15/12/2021,0000473923,"1,868.87",Revenue,FCC Environment Services (UK) Ltd,0
South Ribble Borough Council,http://statistics.data.gov.uk/id/local-authority/30UE,Trade Waste,External Contractors Charges,4570,Commercial waste properties- November 2021,15/12/2021,0000473923,"7,274.67",Revenue,FCC Environment Services (UK) Ltd,0
South Ribble Borough Council,http://statistics.data.gov.uk/id/local-authority/30UE,Waste Collection,External Contractors Charges,4570,Bulky waste collections- November 2021,15/12/2021,0000473923,"1,009.74",Revenue,FCC Environment Services (UK) Ltd,0
South Ribble Borough Council,http://statistics.data.gov.uk/id/local-authority/30UE,Waste Collection,External Contractors Charges,4570,WEEE collections - November 2021,15/12/2021,0000473923,379.38,Revenue,FCC Environment Services (UK) Ltd,0
South Ribble Borough Council,http://statistics.data.gov.uk/id/local-authority/30UE,Waste Collection,External Contractors Charges,4570,Clinical waste collections- November 2021,15/12/2021,0000473923,646.31,Revenue,FCC Environment Services (UK) Ltd,0
South Ribble Borough Council,http://statistics.data.gov.uk/id/local-authority/30UE,Waste Collection,External Contractors Charges,4570,Replacement Bins- November 2021,15/12/2021,0000473923,"5,000.00",Revenue,FCC Environment Services (UK) Ltd,0
South Ribble Borough Council,http://statistics.data.gov.uk/id/local-authority/30UE,Waste Collection,External Contractors Charges,4570,Additional Properties- November 2021,15/12/2021,0000473923,"5,233.70",Revenue,FCC Environment Services (UK) Ltd,0
South Ribble Borough Council,http://statistics.data.gov.uk/id/local-authority/30UE,Short Term Creditors,Amount Paid,0030,recycling ret,15/12/2021,0000473923,"-3,112.62",Revenue,FCC Environment Services (UK) Ltd,0
South Ribble Borough Council,http://statistics.data.gov.uk/id/local-authority/30UE,Short Term Creditors,Amount Paid,0030,refuse ret,15/12/2021,0000473923,"-4,082.51",Revenue,FCC Environment Services (UK) Ltd,0
South Ribble Borough Council,http://statistics.data.gov.uk/id/local-authority/30UE,Waste Collection,External Contractors Charges,4570,Additional Bulky Waste Collections- November  2021,22/12/2021,0000474072,774.90,Revenue,FCC Environment Services (UK) Ltd,0
South Ribble Borough Council,http://statistics.data.gov.uk/id/local-authority/30UE,Waste Collection,External Contractors Charges,4570,Additional WEEE Collections- November 2021,22/12/2021,0000474072,586.08,Revenue,FCC Environment Services (UK) Ltd,0
South Ribble Borough Council,http://statistics.data.gov.uk/id/local-authority/30UE,Short Term Creditors,Amount Paid,0030,RETENTION,22/12/2021,0000474072,-68.05,Revenue,FCC Environment Services (UK) Ltd,0
South Ribble Borough Council,http://statistics.data.gov.uk/id/local-authority/30UE,Central Support Services,Materials General,4040,1 x leaf spring 1 x shackle set 1 x bush set BR19ODM JFC17229,15/12/2021,0000474055,394.09,Revenue,Fred Coupe,0
South Ribble Borough Council,http://statistics.data.gov.uk/id/local-authority/30UE,Service Management & Support,Petrol,3131,Fuel W/C 22.11.21,08/12/2021,0000473811,333.60,Revenue,Fuel Card Services,0
South Ribble Borough Council,http://statistics.data.gov.uk/id/local-authority/30UE,Corporate Management,Legal,4821,Payment to Fylde Law on behalf of their client NAME REDACTED. Remaining balance of 7060 from previous invoice plus costs of 1528 and VAT,01/12/2021,0000473607,"8,588.00",Revenue,Fylde Law,0
South Ribble Borough Council,http://statistics.data.gov.uk/id/local-authority/30UE,Short Term Debtors,Manual Control,0001,"Additional costs of 1,412.00",01/12/2021,0000473607,"1,412.00",Revenue,Fylde Law,0
South Ribble Borough Council,http://statistics.data.gov.uk/id/local-authority/30UE,Recreation & Sport,Reactive Repair & Maintenance,2020,"Bamber bridge Leisure centre sports hall roof, A price TBC",15/12/2021,0000473932,"1,730.00",Revenue,Gables Uk Ltd,0
South Ribble Borough Council,http://statistics.data.gov.uk/id/local-authority/30UE,Surplus or Deficit on Trading,Reactive Repair & Maintenance,2020,Works to ADDRESS REDACTED as instructed by NAME REDACTED.,22/12/2021,0000473937,550.00,Revenue,Gables Uk Ltd,0
South Ribble Borough Council,http://statistics.data.gov.uk/id/local-authority/30UE,Central Support Services,Reactive Repair & Maintenance,2020,"Civic Centre Leyland, first floor roof leaks. Male toilet and Liberal democrats group room. Price TBC. 500.00.",15/12/2021,0000473938,575.00,Revenue,Gables Uk Ltd,0
South Ribble Borough Council,http://statistics.data.gov.uk/id/local-authority/30UE,Recreation & Sport,Publicity & Promotion,4842,Various Nike Garments for Active Schools Team.,15/12/2021,0000473966,652.70,Revenue,Galaxy,0
South Ribble Borough Council,http://statistics.data.gov.uk/id/local-authority/30UE,Central Support Services,Departmental Course Fees,1420,4 x MOT Refresher Courses,22/12/2021,0000474264,388.00,Revenue,GB MOT Training Ltd,0
South Ribble Borough Council,http://statistics.data.gov.uk/id/local-authority/30UE,Community Development,Core Fund,4861,Items including gloves and socks for the winter warmth Boost Fund project,22/12/2021,0000474245,828.00,Revenue,Ghulam Sabir T/A The Sox Co.,0
South Ribble Borough Council,http://statistics.data.gov.uk/id/local-authority/30UE,Community Development,Materials General,4040,"Two 13m x 6m Inflatable Sports Pitches - bespoke design which can be connected together. Inflatable Football Shootout, Delivery",22/12/2021,0000474168,"6,350.00",Revenue,Glow Inflatables Ltd,0
South Ribble Borough Council,http://statistics.data.gov.uk/id/local-authority/30UE,Capital,Capital Grant,C570,DFG WORK FOR ADAPTATION FOR LEVEL ACCESS BATHROOM AT ADDRESS REDACTED AS PER SRBC PLANS AND QUOTE,15/12/2021,0000473994,"4,211.22",Revenue,GOS Heating Ltd,0
South Ribble Borough Council,http://statistics.data.gov.uk/id/local-authority/30UE,Capital,Cap Contract Payment,C230,Worden Hall PM and QS support RIBA stage 4-7 - Fee proposal and draw down schedule as agreed with SRBC Regeneration Dept.,01/12/2021,0000473476,"3,850.00",Revenue,Gosling Consulting Limited,0
South Ribble Borough Council,http://statistics.data.gov.uk/id/local-authority/30UE,Capital,Cap Contract Payment,C230,"Project - Mckenzie Arms Works - PM/QS Services (updated Stage 2) as per NAME REDACTED Value - 11,600",10/12/2021,0000473513,"2,900.00",Revenue,Gosling Consulting Limited,0
South Ribble Borough Council,http://statistics.data.gov.uk/id/local-authority/30UE,Capital,Cap Contract Payment,C230,IRS procurement support - Leyland Town Deal,08/12/2021,0000473758,525.00,Revenue,Gosling Consulting Limited,0
South Ribble Borough Council,http://statistics.data.gov.uk/id/local-authority/30UE,Capital,Cap Contract Payment,C230,Quantity Surveyor Services and Procurement Support Services to RIBA Stage 3 / Leyland Town Deal Project as per NAME REDACTED,08/12/2021,0000473759,"4,977.00",Revenue,Gosling Consulting Limited,0
South Ribble Borough Council,http://statistics.data.gov.uk/id/local-authority/30UE,Capital,Cap Contract Payment,C230,"Project - Mckenzie Arms Works - PM/QS Services (updated Stage 2) as per NAME REDACTED Value - 11,600",08/12/2021,0000473760,"3,072.80",Revenue,Gosling Consulting Limited,0
South Ribble Borough Council,http://statistics.data.gov.uk/id/local-authority/30UE,Capital,Cap Contract Payment,C230,IRS procurement support - Leyland Town Deal,08/12/2021,0000473788,"1,657.50",Revenue,Gosling Consulting Limited,0
South Ribble Borough Council,http://statistics.data.gov.uk/id/local-authority/30UE,Central Support Services,Materials General,4040,4x 0813 Daf Brake Pad Kit - Bin 541,15/12/2021,0000474017,578.00,Revenue,H & J SERVICES LTD,0
South Ribble Borough Council,http://statistics.data.gov.uk/id/local-authority/30UE,Central Support Services,Materials General,4040,4 x 0813 DAF BRAKE PAD KIT @ 144.50 - BIN541,15/12/2021,0000474018,578.00,Revenue,H & J SERVICES LTD,0
South Ribble Borough Council,http://statistics.data.gov.uk/id/local-authority/30UE,Central Support Services,Materials General,4040,4 X EKBS 087 VOLVO/DENNIS PAD KIT @ 95.00 - BIN 539,15/12/2021,0000474018,380.00,Revenue,H & J SERVICES LTD,0
South Ribble Borough Council,http://statistics.data.gov.uk/id/local-authority/30UE,Central Support Services,Materials General,4040,4 x Dennis pad kits- BIN 539,22/12/2021,0000474289,380.00,Revenue,H & J SERVICES LTD,0
South Ribble Borough Council,http://statistics.data.gov.uk/id/local-authority/30UE,Capital,Cap Contract Payment,C230,Penwortham Masterplan Project,08/12/2021,0000473899,"8,033.00",Revenue,Hem Des LLP,0
South Ribble Borough Council,http://statistics.data.gov.uk/id/local-authority/30UE,Central Support Services,Consultancy Fees,4541,"IOW integration and setup, Info@Work system build = 10 days, Document migration = 16 days, Data cleansing = 3 days",10/12/2021,0000473718,"11,600.00",Revenue,Henry Grogan,0
South Ribble Borough Council,http://statistics.data.gov.uk/id/local-authority/30UE,Short Term Creditors,Amount Received,0140,,15/12/2021,0000473240,450.31,Revenue,HM REVENUE & CUSTOMS,0
South Ribble Borough Council,http://statistics.data.gov.uk/id/local-authority/30UE,Central Support Services,Reactive Repair & Maintenance,2020,Retention fees for works to the painting contract at the Civic centre.,22/12/2021,0000473130,"2,300.95",Revenue,Holden Building Solutions Limited,0
South Ribble Borough Council,http://statistics.data.gov.uk/id/local-authority/30UE,Short Term Debtors,Amount Paid,0030,Deed of release related to Tranch 2 for Leyland Test Track from 25th Aug 2020 - 12 Feb 2021,10/12/2021,0000466751,"1,020.00",Revenue,HOMES AND COMMUNITIES AGENCY (HCA),0
South Ribble Borough Council,http://statistics.data.gov.uk/id/local-authority/30UE,Short Term Debtors,Amount Paid,0030,Deed of release related to Tranche 1 transfers for Leyland test Track 12 - Feb to 19 March 21,10/12/2021,0000466752,"1,020.00",Revenue,HOMES AND COMMUNITIES AGENCY (HCA),0
South Ribble Borough Council,http://statistics.data.gov.uk/id/local-authority/30UE,Capital,Cap Contract Payment,C230,"Additional QS Consultancy for Hurst Grange Park Coach House, Penwortham",22/12/2021,0000474185,"1,823.30",Revenue,Ian Brew QS Consultancy,0
South Ribble Borough Council,http://statistics.data.gov.uk/id/local-authority/30UE,Street Cleansing,Hiring Expenses,3212,Hire of Flat Bed from 16/11/2021 - 30/11/2021 - 14 days (Booking Ref 7649638),15/12/2021,0000474007,809.28,Revenue,Intack Self Drive Ltd,0
South Ribble Borough Council,http://statistics.data.gov.uk/id/local-authority/30UE,Capital,Cap Contract Payment,C230,"Architects fees for stages 5&6 Hurst Grange Coach House, Penwortham",08/12/2021,0000473795,592.40,Revenue,Ivan Wilson Architect,0
South Ribble Borough Council,http://statistics.data.gov.uk/id/local-authority/30UE,Capital,Cap Contract Payment,C230,Order - trees only as per NAME REDACTED request Amount - 18204.94,08/12/2021,0000473667,976.12,Revenue,J A JONES & SONS,0
South Ribble Borough Council,http://statistics.data.gov.uk/id/local-authority/30UE,Capital,Cap Contract Payment,C230,3075 x Crataegus monogyna trees,08/12/2021,0000473669,"1,414.50",Revenue,J A JONES & SONS,0
South Ribble Borough Council,http://statistics.data.gov.uk/id/local-authority/30UE,Capital,Cap Contract Payment,C230,1150 x prunus spinosa trees,08/12/2021,0000473669,529.00,Revenue,J A JONES & SONS,0
South Ribble Borough Council,http://statistics.data.gov.uk/id/local-authority/30UE,Capital,Cap Contract Payment,C230,70 x sorbus aucuparia,08/12/2021,0000473669,39.20,Revenue,J A JONES & SONS,0
South Ribble Borough Council,http://statistics.data.gov.uk/id/local-authority/30UE,Capital,Cap Contract Payment,C230,70 x Corylus avellane trees,08/12/2021,0000473669,39.20,Revenue,J A JONES & SONS,0
South Ribble Borough Council,http://statistics.data.gov.uk/id/local-authority/30UE,Capital,Cap Contract Payment,C230,2 x salix alba trees,08/12/2021,0000473669,1.60,Revenue,J A JONES & SONS,0
South Ribble Borough Council,http://statistics.data.gov.uk/id/local-authority/30UE,Capital,Cap Contract Payment,C230,Delivery to Moss Side Depot,08/12/2021,0000473669,65.00,Revenue,J A JONES & SONS,0
South Ribble Borough Council,http://statistics.data.gov.uk/id/local-authority/30UE,Capital,Cap Contract Payment,C230,Work: supply and delivery of 8 light standard trees as per NAME REDACTED Cost: 420,08/12/2021,0000473670,290.00,Revenue,J A JONES & SONS,0
South Ribble Borough Council,http://statistics.data.gov.uk/id/local-authority/30UE,Capital,Cap Contract Payment,C230,Please undertake works for the energy saving plan and meter monitoring  at the Civic Centre as detailed in your quotation reference Q13214,01/12/2021,0000473551,"16,745.51",Revenue,JBC CONTROL SYSTEM,0
South Ribble Borough Council,http://statistics.data.gov.uk/id/local-authority/30UE,Capital,Cap Contract Payment,C230,"Fire safety - Civic, Depot, Kingsfold This order is linked to the urgent decision waiver which was granted to bring all 3 sites into compliance",08/12/2021,0000473701,"12,715.00",Revenue,JFN Integrated Solutions Ltd,0
South Ribble Borough Council,http://statistics.data.gov.uk/id/local-authority/30UE,Recreation & Sport,Publicity & Promotion,4842,"Kit for South Ribble Town Team, 16 Shorts - 10 each, 16 Shirts - 20 each, GK Full Kit - 39.25, 17 Socks - 4.75",22/12/2021,0000473858,432.71,Revenue,JOHN HARRISON SPORTS LTD,0
South Ribble Borough Council,http://statistics.data.gov.uk/id/local-authority/30UE,Recreation & Sport,Publicity & Promotion,4842,zero items,22/12/2021,0000473858,80.75,Revenue,JOHN HARRISON SPORTS LTD,0
South Ribble Borough Council,http://statistics.data.gov.uk/id/local-authority/30UE,Capital,Cap Contract Payment,C230,Costs for work on the refurbishment of Worden Hall Central Buildings,08/12/2021,0000472510,"95,628.26",Revenue,John Turner Construction Group Ltd,0
South Ribble Borough Council,http://statistics.data.gov.uk/id/local-authority/30UE,Capital,Cap Contract Payment,C230,Costs for work on the refurbishment of Worden Hall Central Buildings,08/12/2021,0000473509,"77,366.32",Revenue,John Turner Construction Group Ltd,0
South Ribble Borough Council,http://statistics.data.gov.uk/id/local-authority/30UE,Capital,Cap Contract Payment,C230,"To undertake improvements to King George V playing field, Walton Le Dale as agreed with SRBC regeneration dept.",22/12/2021,0000474013,"1,162.01",Revenue,John Wade Groundworks Ltd t/a Wade Group,0
South Ribble Borough Council,http://statistics.data.gov.uk/id/local-authority/30UE,Central Support Services,Materials General,4040,4000 litres Bulk Adblu @ 0.49ppl,08/12/2021,0000473573,"1,960.00",Revenue,LANCASHIRE OILS LTD,0
South Ribble Borough Council,http://statistics.data.gov.uk/id/local-authority/30UE,Trade Waste,Landfilll Charges,5412,"Quarter 2 Disposal Fee, Landfill Tax & 5% Admin Fee",08/12/2021,0000473466,"62,140.92",Revenue,LANCS COUNTY COUNCIL,0
South Ribble Borough Council,http://statistics.data.gov.uk/id/local-authority/30UE,Central Support Services,Miscellaneous Expenses,4851,"TTRO Withy Grove Road Bamber Bridge - NAMES REDACTED, APPLICATION FOR TEMPORARY TRAFFIC REGULATION ORDER",01/12/2021,0000473499,585.00,Revenue,LANCS COUNTY COUNCIL,0
South Ribble Borough Council,http://statistics.data.gov.uk/id/local-authority/30UE,Community Development,Core Fund,4861,Stress testing of lighting columns,01/12/2021,0000473631,300.00,Revenue,LANCS COUNTY COUNCIL,0
South Ribble Borough Council,http://statistics.data.gov.uk/id/local-authority/30UE,Local Land Charges,L C C General,4530,LAND CHARGES - OCTOBER 2021,01/12/2021,0000473644,816.50,Revenue,LANCS COUNTY COUNCIL,0
South Ribble Borough Council,http://statistics.data.gov.uk/id/local-authority/30UE,Capital,Capital Grant,C570,DFG WORK FOR ADAPTATION FOR HOIST EQUIPMENT AT ADDRESS REDACTED AS PER QUOTE SUPPLIED OF 2442.00,08/12/2021,0000473855,"2,442.00",Revenue,LANCS COUNTY COUNCIL,0
South Ribble Borough Council,http://statistics.data.gov.uk/id/local-authority/30UE,Local Land Charges,L C C General,4530,LAND CHARGES - NOVEMBER 2021,22/12/2021,0000474067,971.50,Revenue,LANCS COUNTY COUNCIL,0
South Ribble Borough Council,http://statistics.data.gov.uk/id/local-authority/30UE,Central Support Services,Materials General,4040,"1 x headlight, 1 x fog light, 1 x bumper, 1 x headlight panel, 1 x fog light panel, YA19NJZ, JFC17502",01/12/2021,0000473543,354.99,Revenue,LANCS DAF,0
South Ribble Borough Council,http://statistics.data.gov.uk/id/local-authority/30UE,Central Support Services,Materials General,4040,"1 x headlight, 1 x fog light, 1 x bumper, 1 x headlight panel, 1 x fog light panel, YA19NJZ, JFC17502",08/12/2021,0000473815,315.22,Revenue,LANCS DAF,0
South Ribble Borough Council,http://statistics.data.gov.uk/id/local-authority/30UE,Central Support Services,Materials General,4040,2 x Ball Joints - BIN 469,22/12/2021,0000474267,350.42,Revenue,Leyland Exports Ltd,0
South Ribble Borough Council,http://statistics.data.gov.uk/id/local-authority/30UE,Local Tax Collection,Consultancy Fees,4541,Empty Home Review Sep-Oct 21,10/12/2021,0000473922,"9,152.47",Revenue,LIBERATA UK LTD,0
South Ribble Borough Council,http://statistics.data.gov.uk/id/local-authority/30UE,Capital,Capital Grant,C570,DFG WORKS FOR LEVEL ACCESS BATHROOM AT ADDRESS REDACTED. NEW PROGRESS PROPERTY 50% OF QUOTE PAID,01/12/2021,0000473710,"2,296.19",Revenue,MAHONEY CONTRACTORS LTD,0
South Ribble Borough Council,http://statistics.data.gov.uk/id/local-authority/30UE,Capital,Capital Grant,C570,"DFG WORKS FOR LEVEL ACCESS BATHROOM AT ADDRESS REDACTED, NEW PROGRESS PROPERTY 50% OF QUOTE PAID",15/12/2021,0000473995,894.05,Revenue,MAHONEY CONTRACTORS LTD,0
South Ribble Borough Council,http://statistics.data.gov.uk/id/local-authority/30UE,Capital,Capital Grant,C570,DFG WORKS FOR LEVEL ACCESS BATHROOM AT ADDRESS REDACTED. NEW PROGRESS PROPERTY 50% OF QUOTE PAID,15/12/2021,0000473996,"3,448.14",Revenue,MAHONEY CONTRACTORS LTD,0
South Ribble Borough Council,http://statistics.data.gov.uk/id/local-authority/30UE,Capital,Capital Grant,C570,DFG WORKS FOR LEVEL ACCESS BATHROOM AT ADDRESS REDACTED. NEW PROGRESS PROPERTY 50% OF QUOTE PAID,15/12/2021,0000473997,"2,658.89",Revenue,MAHONEY CONTRACTORS LTD,0
South Ribble Borough Council,http://statistics.data.gov.uk/id/local-authority/30UE,Community Development,Core Fund,4861,To provide signage and delivery as per quote MSS/1027/01,01/12/2021,0000473630,330.50,Revenue,Main Street Signs Ltd,0
South Ribble Borough Council,http://statistics.data.gov.uk/id/local-authority/30UE,Central Support Services,Intruder Alarm,2035,"Hurst Grange Coach House as per NAME REDACTED request, Installation of Dual Comm Intruder, Annual Maintenance and Monitoring 2 Visits",22/12/2021,0000473906,760.00,Revenue,MMP FIRE AND SECURITY CENTRE,0
South Ribble Borough Council,http://statistics.data.gov.uk/id/local-authority/30UE,Recreation & Sport,Maintenance & Repair,4013,Maglock 500kg,08/12/2021,0000473608,85.00,Revenue,Moore Switched On Electrical Services,0
South Ribble Borough Council,http://statistics.data.gov.uk/id/local-authority/30UE,Recreation & Sport,Maintenance & Repair,4013,new PSU unit,08/12/2021,0000473608,150.00,Revenue,Moore Switched On Electrical Services,0
South Ribble Borough Council,http://statistics.data.gov.uk/id/local-authority/30UE,Recreation & Sport,Maintenance & Repair,4013,labour 1.5 hrs,08/12/2021,0000473608,60.00,Revenue,Moore Switched On Electrical Services,0
South Ribble Borough Council,http://statistics.data.gov.uk/id/local-authority/30UE,Recreation & Sport,Maintenance & Repair,4013,supply sump pump,08/12/2021,0000473609,108.00,Revenue,Moore Switched On Electrical Services,0
South Ribble Borough Council,http://statistics.data.gov.uk/id/local-authority/30UE,Recreation & Sport,Maintenance & Repair,4013,labour to fit sump pump and fix light switch plantroom,08/12/2021,0000473609,160.00,Revenue,Moore Switched On Electrical Services,0
South Ribble Borough Council,http://statistics.data.gov.uk/id/local-authority/30UE,Recreation & Sport,Maintenance & Repair,4013,x2 lights for sports hall @ 89.40 each,08/12/2021,0000473612,178.80,Revenue,Moore Switched On Electrical Services,0
South Ribble Borough Council,http://statistics.data.gov.uk/id/local-authority/30UE,Recreation & Sport,Maintenance & Repair,4013,2.5. hours labour @87.50 with vat @53.26,08/12/2021,0000473612,87.50,Revenue,Moore Switched On Electrical Services,0
South Ribble Borough Council,http://statistics.data.gov.uk/id/local-authority/30UE,Recreation & Sport,Reactive Repair & Maintenance,2020,LED Panel Module (to remove all 18w flourescent fittings with lower energy 600 LED type) + Labour 279.65,01/12/2021,0000473613,279.65,Revenue,Moore Switched On Electrical Services,0
South Ribble Borough Council,http://statistics.data.gov.uk/id/local-authority/30UE,Central Support Services,Legal,4821,Legal advice regarding Pickerings Farm Site,08/12/2021,0000473765,"1,125.00",Revenue,MR IAN PONTER,0
South Ribble Borough Council,http://statistics.data.gov.uk/id/local-authority/30UE,Central Support Services,Operational Equip & Tools,4010,"Call out to repair Ram materials, labour and delivery",01/12/2021,0000473535,"1,867.95",Revenue,MRB Workshop Services Ltd,0
South Ribble Borough Council,http://statistics.data.gov.uk/id/local-authority/30UE,Capital,Capital Grant,C570,DFG WORK FRO ADAPTATION FOR LEVEL ACCESS BATHROOM AND RAMP AT ADDRESS REDACTED AS PER SRBC PLANS,01/12/2021,0000473712,"5,732.43",Revenue,MSG Building and Construction Ltd,0
South Ribble Borough Council,http://statistics.data.gov.uk/id/local-authority/30UE,Central Support Services,Computer Equipment,4241,"1x iPad power adapter 30w, 3x USB-C Digital AV Multiport Adapter, Gigabit Ethernet Adapter, 3x 20m Cat5e Patch Cable - Black",22/12/2021,0000473059,690.46,Revenue,MYPREMIER LTD,0
South Ribble Borough Council,http://statistics.data.gov.uk/id/local-authority/30UE,Economic Development,Miscellaneous Expenses,4851,"1x Frame Marquee 3 x 48 (144 Sq Metres), 34x Small Ballast/Fastening Down + Covers, Delivery & Collection, 1x Spitz Marquee 6 x 6",15/12/2021,0000473981,"2,804.00",Revenue,NATIONWIDE MARQUEE HIRE LTD,0
South Ribble Borough Council,http://statistics.data.gov.uk/id/local-authority/30UE,Central Support Services,External Contractors Charges,4570,Steam Clean VX18 KLC JFC17658,10/12/2021,0000473919,65.00,Revenue,NAYLORS TRANSPORT (LEYLAND) ltd,0
South Ribble Borough Council,http://statistics.data.gov.uk/id/local-authority/30UE,Central Support Services,External Contractors Charges,4570,Steam Clean PO20 ZRV JFC17659,10/12/2021,0000473919,65.00,Revenue,NAYLORS TRANSPORT (LEYLAND) ltd,0
South Ribble Borough Council,http://statistics.data.gov.uk/id/local-authority/30UE,Central Support Services,External Contractors Charges,4570,Steam Clean PJ62 UCG JFC17660,10/12/2021,0000473919,65.00,Revenue,NAYLORS TRANSPORT (LEYLAND) ltd,0
South Ribble Borough Council,http://statistics.data.gov.uk/id/local-authority/30UE,Central Support Services,External Contractors Charges,4570,Steam Clean VO21 YVG JFC17661,10/12/2021,0000473919,65.00,Revenue,NAYLORS TRANSPORT (LEYLAND) ltd,0
South Ribble Borough Council,http://statistics.data.gov.uk/id/local-authority/30UE,Central Support Services,External Contractors Charges,4570,Steam Clean PF18 JOV JFC17662,10/12/2021,0000473919,65.00,Revenue,NAYLORS TRANSPORT (LEYLAND) ltd,0
South Ribble Borough Council,http://statistics.data.gov.uk/id/local-authority/30UE,Central Support Services,External Contractors Charges,4570,Steam Clean PO20 ZRY JFC17663,10/12/2021,0000473919,65.00,Revenue,NAYLORS TRANSPORT (LEYLAND) ltd,0
South Ribble Borough Council,http://statistics.data.gov.uk/id/local-authority/30UE,Central Support Services,External Contractors Charges,4570,Steam Clean PO20 ZRX JFC17664,10/12/2021,0000473919,65.00,Revenue,NAYLORS TRANSPORT (LEYLAND) ltd,0
South Ribble Borough Council,http://statistics.data.gov.uk/id/local-authority/30UE,Central Support Services,External Contractors Charges,4570,Steam Clean YD19 AYK JFC17665,10/12/2021,0000473920,65.00,Revenue,NAYLORS TRANSPORT (LEYLAND) ltd,0
South Ribble Borough Council,http://statistics.data.gov.uk/id/local-authority/30UE,Central Support Services,External Contractors Charges,4570,Steam Clean YE19 JPW JFC17666,10/12/2021,0000473920,65.00,Revenue,NAYLORS TRANSPORT (LEYLAND) ltd,0
South Ribble Borough Council,http://statistics.data.gov.uk/id/local-authority/30UE,Central Support Services,External Contractors Charges,4570,Steam Clean YA19 NKC JFC17667,10/12/2021,0000473920,65.00,Revenue,NAYLORS TRANSPORT (LEYLAND) ltd,0
South Ribble Borough Council,http://statistics.data.gov.uk/id/local-authority/30UE,Central Support Services,External Contractors Charges,4570,Steam Clean VU60 HLE JFC17668,10/12/2021,0000473920,65.00,Revenue,NAYLORS TRANSPORT (LEYLAND) ltd,0
South Ribble Borough Council,http://statistics.data.gov.uk/id/local-authority/30UE,Central Support Services,Network and Security,4247,PSN 344  Lot 1 DNS Services - Call Off Charges Year 1 and Year 2 - Community Charge Call Off Contract Period 1 and Period 2,01/12/2021,0000473039,765.94,Revenue,NOMINET UK,0
South Ribble Borough Council,http://statistics.data.gov.uk/id/local-authority/30UE,Other Welfare Services,Materials General,4040,"Resettlement Programme, Electric Cooker, Washing Machine, Fridge Freezer",15/12/2021,0000473917,714.17,Revenue,NORTHWEST DOMESTIC SERVICES,0
South Ribble Borough Council,http://statistics.data.gov.uk/id/local-authority/30UE,Economic Development,Miscellaneous Expenses,4851,"1 x EMT, 1 x Responders (Frec 3 & Above), 1 x Rapid Response Vehicle, Remembrance Day Service",10/12/2021,0000473602,350.00,Revenue,NorWest Ambulance T/A NorWest Medical,0
South Ribble Borough Council,http://statistics.data.gov.uk/id/local-authority/30UE,Recreation & Sport,Electricity,2303,1/11 to 30/11/21,15/12/2021,0000473944,"3,394.51",Revenue,NPOWER Business,0
South Ribble Borough Council,http://statistics.data.gov.uk/id/local-authority/30UE,Recreation & Sport,Electricity,2303,1/11 to 30/11/21,15/12/2021,0000473945,"4,821.59",Revenue,NPOWER Business,0
South Ribble Borough Council,http://statistics.data.gov.uk/id/local-authority/30UE,Recreation & Sport,Electricity,2303,1/11 to 30/11/21,15/12/2021,0000473946,"3,076.25",Revenue,NPOWER Business,0
South Ribble Borough Council,http://statistics.data.gov.uk/id/local-authority/30UE,Recreation & Sport,Electricity,2303,1/7 to 31/7/21,22/12/2021,0000474084,"2,660.17",Revenue,NPOWER Business,0
South Ribble Borough Council,http://statistics.data.gov.uk/id/local-authority/30UE,Recreation & Sport,Electricity,2303,1/5 to 31/5/21,22/12/2021,0000474085,"3,145.89",Revenue,NPOWER Business,0
South Ribble Borough Council,http://statistics.data.gov.uk/id/local-authority/30UE,Recreation & Sport,Electricity,2303,1/5 to 31/5/21,22/12/2021,0000474086,"2,964.02",Revenue,NPOWER Business,0
South Ribble Borough Council,http://statistics.data.gov.uk/id/local-authority/30UE,Recreation & Sport,Electricity,2303,1/4 to 30/4/21,22/12/2021,0000474099,"2,915.35",Revenue,NPOWER Business,0
South Ribble Borough Council,http://statistics.data.gov.uk/id/local-authority/30UE,Parking Services,Parking Attendants,4514,Deployment of officers- October 2021,01/12/2021,0000473601,"1,685.44",Revenue,NSL LTD,0
South Ribble Borough Council,http://statistics.data.gov.uk/id/local-authority/30UE,Parking Services,Cash Collection Charges Car Parks,4855,"Cash collection, counting and bulk cash collection",01/12/2021,0000473601,531.74,Revenue,NSL LTD,0
South Ribble Borough Council,http://statistics.data.gov.uk/id/local-authority/30UE,Open Spaces,Security Service,4526,Price per contracted itemised collection,01/12/2021,0000473601,34.86,Revenue,NSL LTD,0
South Ribble Borough Council,http://statistics.data.gov.uk/id/local-authority/30UE,Central Support Services,Consultancy Fees,4541,SRBC Firewall support,10/12/2021,0000473909,"3,179.00",Revenue,NVIRON LTD,0
South Ribble Borough Council,http://statistics.data.gov.uk/id/local-authority/30UE,Economic Development,Miscellaneous Expenses,4851,"8 x Standard Portaloos, 2 x Disabled Portaloos, 1 x Disabled Portaloos with baby changing facilities, Leyland Christmas Lights Switch On",22/12/2021,0000474164,920.00,Revenue,NW Portables Ltd,0
South Ribble Borough Council,http://statistics.data.gov.uk/id/local-authority/30UE,Parking Services,Materials General,4040,"60,000 pay and display tickets and plate as per your estimate no 111248",08/12/2021,0000473829,336.60,Revenue,PAPERWORK UK LTD,0
South Ribble Borough Council,http://statistics.data.gov.uk/id/local-authority/30UE,Central Support Services,Consumable Clng Materials,2711,BA020-75 JANGRO MULTI-SURFACE POLISH 750ML 4 @ 1.58,22/12/2021,0000474127,6.32,Revenue,Pattersons (Bristol) Ltd,0
South Ribble Borough Council,http://statistics.data.gov.uk/id/local-authority/30UE,Central Support Services,Consumable Clng Materials,2711,BC015-75 JANGRO THICKENED BLEACH 750ML 48 @ 0.50,22/12/2021,0000474127,24.00,Revenue,Pattersons (Bristol) Ltd,0
South Ribble Borough Council,http://statistics.data.gov.uk/id/local-authority/30UE,Central Support Services,Consumable Clng Materials,2711,BK101-50 JANGRO PINK PEARLISED HAND SOAP 500ML 2 @ 1.22,22/12/2021,0000474127,2.44,Revenue,Pattersons (Bristol) Ltd,0
South Ribble Borough Council,http://statistics.data.gov.uk/id/local-authority/30UE,Central Support Services,Consumable Clng Materials,2711,CM180 JANGRO REFUSE SACKS 18X29X39 180G HEAVY DUTY BLACK (200) 2 @ 11.75,22/12/2021,0000474127,23.50,Revenue,Pattersons (Bristol) Ltd,0
South Ribble Borough Council,http://statistics.data.gov.uk/id/local-authority/30UE,Central Support Services,Consumable Clng Materials,2711,CG106-G EXEL MICROFIBRE SUPER CLOTH 40X 40CM GREEN (10) 12 @  3.90,22/12/2021,0000474127,46.80,Revenue,Pattersons (Bristol) Ltd,0
South Ribble Borough Council,http://statistics.data.gov.uk/id/local-authority/30UE,Central Support Services,Consumable Clng Materials,2711,BC045-1 JANGRO TOILET & WASHROOM CLEANER DESCALER 1 LTR 24 @ 0.94,22/12/2021,0000474127,23.76,Revenue,Pattersons (Bristol) Ltd,0
South Ribble Borough Council,http://statistics.data.gov.uk/id/local-authority/30UE,Central Support Services,Consumable Clng Materials,2711,"BK101-5 JANGRO PINK PEARLISED HAND SOAP 5LTR, 4 @  3.60",22/12/2021,0000474127,14.40,Revenue,Pattersons (Bristol) Ltd,0
South Ribble Borough Council,http://statistics.data.gov.uk/id/local-authority/30UE,Central Support Services,Consumable Clng Materials,2711,"CG106-P EXEL MICROFIBRE SUPER CLOTH 40X 40CM PINK (10), 12 @ 3.90",22/12/2021,0000474127,46.80,Revenue,Pattersons (Bristol) Ltd,0
South Ribble Borough Council,http://statistics.data.gov.uk/id/local-authority/30UE,Central Support Services,Consumable Clng Materials,2711,"BC040-1 JANGRO PERFUMED TOILET CLEANER 1LTR, 24 @ �.90",22/12/2021,0000474127,21.60,Revenue,Pattersons (Bristol) Ltd,0
South Ribble Borough Council,http://statistics.data.gov.uk/id/local-authority/30UE,Central Support Services,Consumable Clng Materials,2711,"BB034-5 JANGRO CONCENTRATED GREEN DETERGENT 20% 5LTR, 2 @ 3.30",22/12/2021,0000474127,6.60,Revenue,Pattersons (Bristol) Ltd,0
South Ribble Borough Council,http://statistics.data.gov.uk/id/local-authority/30UE,Central Support Services,Consumable Clng Materials,2711,"BA048-5 JANGRO CLEANER DISINFECTANT 5LTR, 6 @ 9.00",22/12/2021,0000474127,36.00,Revenue,Pattersons (Bristol) Ltd,0
South Ribble Borough Council,http://statistics.data.gov.uk/id/local-authority/30UE,Central Support Services,Consumable Clng Materials,2711,"HA015-G Exel Green PY Socket Mop Head 250g, 10 @ 1.00",22/12/2021,0000474127,10.00,Revenue,Pattersons (Bristol) Ltd,0
South Ribble Borough Council,http://statistics.data.gov.uk/id/local-authority/30UE,Central Support Services,Consumable Clng Materials,2711,FA982 Jangro Vacuum Bag To Suit Karcher & SEBO Upright Vacuums (Pack of 10) 1 @ 5.00,22/12/2021,0000474127,5.00,Revenue,Pattersons (Bristol) Ltd,0
South Ribble Borough Council,http://statistics.data.gov.uk/id/local-authority/30UE,Central Support Services,Consumable Clng Materials,2711,"FD000002 Turkey Feather Duster 48"" 4 @ 4.00",22/12/2021,0000474127,16.00,Revenue,Pattersons (Bristol) Ltd,0
South Ribble Borough Council,http://statistics.data.gov.uk/id/local-authority/30UE,Economic Development,Miscellaneous Expenses,4851,"SUPPLY FACILITIES FOR A TASTE OF LEYLAND GENERATOR, FUEL, CABLES, DISTRO & CABLE RAMP, ENGINEER",01/12/2021,0000473552,305.00,Revenue,Paul K Sound & Vision,0
South Ribble Borough Council,http://statistics.data.gov.uk/id/local-authority/30UE,Central Support Services,External Contractors Charges,4570,Servicing of 18 fire extinguishers FCC,08/12/2021,0000473821,57.60,Revenue,PENNINE FIRE & SAFETY LIMITED,0
South Ribble Borough Council,http://statistics.data.gov.uk/id/local-authority/30UE,Central Support Services,External Contractors Charges,4570,servicing of 47 fire extinguishers - SRBC,08/12/2021,0000473821,150.40,Revenue,PENNINE FIRE & SAFETY LIMITED,0
South Ribble Borough Council,http://statistics.data.gov.uk/id/local-authority/30UE,Central Support Services,External Contractors Charges,4570,recharge 3 x 1KG fire extinguisher - SRBC,08/12/2021,0000473821,38.40,Revenue,PENNINE FIRE & SAFETY LIMITED,0
South Ribble Borough Council,http://statistics.data.gov.uk/id/local-authority/30UE,Central Support Services,External Contractors Charges,4570,recharge 1 x 2KG fire extinguisher - SRBC,08/12/2021,0000473821,13.25,Revenue,PENNINE FIRE & SAFETY LIMITED,0
South Ribble Borough Council,http://statistics.data.gov.uk/id/local-authority/30UE,Central Support Services,External Contractors Charges,4570,service 19 x fire extinguishers - CFCC,08/12/2021,0000473821,60.80,Revenue,PENNINE FIRE & SAFETY LIMITED,0
South Ribble Borough Council,http://statistics.data.gov.uk/id/local-authority/30UE,Central Support Services,Occupational Health,1408,"PROVISION OF WELLBEING, TELEPHONE CONSULTATIONS AND COUNSELLING ETC FROM 12 OCTOBER 2021 TO MARCH 2022",08/12/2021,0000473769,350.00,Revenue,People Asset Management,0
South Ribble Borough Council,http://statistics.data.gov.uk/id/local-authority/30UE,Central Support Services,Telecomms- land lines,4269,01397718 - LK6-00004LR Phone System Shared Server All Language Subscription Licence Per User - Licence 15 x  20.04  300.60,22/12/2021,0000474215,300.60,Revenue,PHOENIX SOFTWARE LTD,0
South Ribble Borough Council,http://statistics.data.gov.uk/id/local-authority/30UE,Recreation & Sport,Rental,4012,"2021 / 22 annual contract for the provision of services to South Ribble Tennis Centre for Sanitary bins x 6,  & nappy bins x 3",15/12/2021,0000473860,326.54,Revenue,PHS GROUP PLC,0
South Ribble Borough Council,http://statistics.data.gov.uk/id/local-authority/30UE,Recreation & Sport,Rental,4012,"2021 / 22 annual contract for the provision of services to Bamber Bridge leisure Centre, Sanitary bins, air stream old unit hand dryers, nappy bins",15/12/2021,0000473876,376.02,Revenue,PHS GROUP PLC,0
South Ribble Borough Council,http://statistics.data.gov.uk/id/local-authority/30UE,Recreation & Sport,Rental,4012,"2021 / 22 annual contract for the provision of services to Leyland Leisure Centre for Sanitary bins, air stream old unit hand dryers, nappy bins",15/12/2021,0000473877,391.60,Revenue,PHS GROUP PLC,0
South Ribble Borough Council,http://statistics.data.gov.uk/id/local-authority/30UE,Central Support Services,Rental,4012,2021 / 2022 annual contract for the provision of sanitary services to the Civic Centre as per your ref 105796,22/12/2021,0000474143,410.88,Revenue,PHS GROUP PLC,0
South Ribble Borough Council,http://statistics.data.gov.uk/id/local-authority/30UE,Central Support Services,Agency Staff,1121,Planning Enforcement Services,01/12/2021,0000473629,"1,140.00",Revenue,Planning Control & PACE Solutions,0
South Ribble Borough Council,http://statistics.data.gov.uk/id/local-authority/30UE,Development Control,Refunded Income,485R,ADDRESS REDACTED,08/12/2021,0000473640,462.00,Revenue,Planning Portal,0
South Ribble Borough Council,http://statistics.data.gov.uk/id/local-authority/30UE,Community Development,Core Fund,4861,Creation and installation of banners,22/12/2021,0000474226,"2,796.96",Revenue,Poppy Signs Ltd,0
South Ribble Borough Council,http://statistics.data.gov.uk/id/local-authority/30UE,Economic Development,Miscellaneous Expenses,4851,"To print 5,000 A4 12 page booklets as per quote 3924.",01/12/2021,0000473700,846.64,Revenue,Preston City Council,0
South Ribble Borough Council,http://statistics.data.gov.uk/id/local-authority/30UE,Central Support Services,External Contractors Charges,4570,Various tyres TR237,22/12/2021,0000474076,628.60,Revenue,PRESTON TYRE SPECIALISTS,0
South Ribble Borough Council,http://statistics.data.gov.uk/id/local-authority/30UE,Elections,Postal Voting Costs,4422,BBE BY-ELECTION - POSTAL VOTE PACKS - QUANTITY 850 - JOB REF 8872,10/12/2021,0000473916,"1,473.00",Revenue,PRINT IMAGE NETWORK LTD,0
South Ribble Borough Council,http://statistics.data.gov.uk/id/local-authority/30UE,Other Welfare Services,Rental,4012,"Void loss, ADDRESS REDACTED, 29/09/21 - 14/11/21",15/12/2021,0000474036,655.65,Revenue,PROGRESS HOUSING GRP,0
South Ribble Borough Council,http://statistics.data.gov.uk/id/local-authority/30UE,Central Support Services,Reactive Repair & Maintenance,2020,Please re-glaze the window to the 3rd floor office at Civic Centre as per your quotation ref Q4465 and includes extra window found for repair,08/12/2021,0000473677,600.00,Revenue,PSR & Sons Joiners & Building Contractors,0
South Ribble Borough Council,http://statistics.data.gov.uk/id/local-authority/30UE,Central Support Services,Reactive Repair & Maintenance,2020,LABOUR,08/12/2021,0000473677,150.00,Revenue,PSR & Sons Joiners & Building Contractors,0
South Ribble Borough Council,http://statistics.data.gov.uk/id/local-authority/30UE,Central Support Services,External Contractors Charges,4570,Please install tracker in to HX21 CCF JFC17685,22/12/2021,0000474145,89.00,Revenue,Quartix,0
South Ribble Borough Council,http://statistics.data.gov.uk/id/local-authority/30UE,Central Support Services,External Contractors Charges,4570,Please install tracker into HX21 CCJ JFC17686,22/12/2021,0000474145,89.00,Revenue,Quartix,0
South Ribble Borough Council,http://statistics.data.gov.uk/id/local-authority/30UE,Central Support Services,External Contractors Charges,4570,Please remove tracker from MV12 SUA and install in BN71 EXO JFC17687,22/12/2021,0000474145,89.00,Revenue,Quartix,0
South Ribble Borough Council,http://statistics.data.gov.uk/id/local-authority/30UE,Central Support Services,External Contractors Charges,4570,Please remove tracker from MV12 SWN and install in BN71 EXP JFC17688,22/12/2021,0000474145,89.00,Revenue,Quartix,0
South Ribble Borough Council,http://statistics.data.gov.uk/id/local-authority/30UE,Central Support Services,External Contractors Charges,4570,Please install tracker in PE08 COH JFC17689,22/12/2021,0000474145,89.00,Revenue,Quartix,0
South Ribble Borough Council,http://statistics.data.gov.uk/id/local-authority/30UE,Homelessness,Temporary Accommodation,5311,January to March,15/12/2021,0000474089,"5,624.90",Revenue,REDDY & CO,0
South Ribble Borough Council,http://statistics.data.gov.uk/id/local-authority/30UE,Central Support Services,Materials General,4040,10 X PIN 2888551 - BIn G047,22/12/2021,0000474274,230.85,Revenue,Refuse Vehicle Parts,0
South Ribble Borough Council,http://statistics.data.gov.uk/id/local-authority/30UE,Central Support Services,Materials General,4040,2 x Tailgate Seal 106219-0 Bin G032,22/12/2021,0000474274,331.34,Revenue,Refuse Vehicle Parts,0
South Ribble Borough Council,http://statistics.data.gov.uk/id/local-authority/30UE,Central Support Services,Materials General,4040,4 x Yoke Ram Pin 222705 Bin G044,22/12/2021,0000474274,151.34,Revenue,Refuse Vehicle Parts,0
South Ribble Borough Council,http://statistics.data.gov.uk/id/local-authority/30UE,Central Support Services,Materials General,4040,4 x composite Bush Yoke Ram 5012665 Bin G045,22/12/2021,0000474274,238.18,Revenue,Refuse Vehicle Parts,0
South Ribble Borough Council,http://statistics.data.gov.uk/id/local-authority/30UE,Central Support Services,Materials General,4040,1 x Limit Switch 1007323 Bin G010,22/12/2021,0000474274,147.74,Revenue,Refuse Vehicle Parts,0
South Ribble Borough Council,http://statistics.data.gov.uk/id/local-authority/30UE,Central Support Services,Materials General,4040,8 Eject Slide Blocks 288610 Bin G052,22/12/2021,0000474274,525.67,Revenue,Refuse Vehicle Parts,0
South Ribble Borough Council,http://statistics.data.gov.uk/id/local-authority/30UE,Central Support Services,Materials General,4040,2 HEX SKT HEAD Under run Sensor 5044512 Bin G024,22/12/2021,0000474274,540.00,Revenue,Refuse Vehicle Parts,0
South Ribble Borough Council,http://statistics.data.gov.uk/id/local-authority/30UE,Central Support Services,Materials General,4040,2 x GPM4 Filter Kit 5025256-1 Bin G027,22/12/2021,0000474274,432.59,Revenue,Refuse Vehicle Parts,0
South Ribble Borough Council,http://statistics.data.gov.uk/id/local-authority/30UE,Central Support Services,Materials General,4040,4 x Barrier Arm 5012241 Bin G015,22/12/2021,0000474274,427.75,Revenue,Refuse Vehicle Parts,0
South Ribble Borough Council,http://statistics.data.gov.uk/id/local-authority/30UE,Central Support Services,Materials General,4040,1 x LED Marker Light 5013400 Bin G018,22/12/2021,0000474274,38.62,Revenue,Refuse Vehicle Parts,0
South Ribble Borough Council,http://statistics.data.gov.uk/id/local-authority/30UE,Central Support Services,Materials General,4040,1 x Yoke Ram 5021824 GO30,22/12/2021,0000474274,700.00,Revenue,Refuse Vehicle Parts,0
South Ribble Borough Council,http://statistics.data.gov.uk/id/local-authority/30UE,Central Support Services,Materials General,4040,2 x BIn Lift Repair Kit Bin G054,22/12/2021,0000474274,343.80,Revenue,Refuse Vehicle Parts,0
South Ribble Borough Council,http://statistics.data.gov.uk/id/local-authority/30UE,Central Support Services,Materials General,4040,2 x Rave Flap Rubber 1003626 Bin G053,22/12/2021,0000474274,285.28,Revenue,Refuse Vehicle Parts,0
South Ribble Borough Council,http://statistics.data.gov.uk/id/local-authority/30UE,Central Support Services,Materials General,4040,Carriage,22/12/2021,0000474274,37.00,Revenue,Refuse Vehicle Parts,0
South Ribble Borough Council,http://statistics.data.gov.uk/id/local-authority/30UE,Recreation & Sport,Planned Annual Repair & Maintenance,2021,"2021 /22 annual contract, 2 visits per year, Caterclean package at South Ribble Tennis Centre & initial clean as detailed in the survey report",08/12/2021,0000473674,595.00,Revenue,Rentokil Intitial UK Ltd,0
South Ribble Borough Council,http://statistics.data.gov.uk/id/local-authority/30UE,Recreation & Sport,Planned Annual Repair & Maintenance,2021,"2021 /22 annual contract, 2 visits per year, Caterclean package at South Ribble Tennis Centre & initial clean as detailed in the survey report",15/12/2021,0000473968,595.00,Revenue,Rentokil Intitial UK Ltd,0
South Ribble Borough Council,http://statistics.data.gov.uk/id/local-authority/30UE,Tourism,Fuel Oil,2301,"Please supply 1,000 ltrs of kerosene to Worden Park PR5 1DJ - contact NAMES REDACTED for access to be delivered asap",22/12/2021,0000473978,618.88,Revenue,RIBBLE FUEL OILS,0
South Ribble Borough Council,http://statistics.data.gov.uk/id/local-authority/30UE,Economic Development,Publicity & Promotion,4842,For the provision of an advert in Leyland Life magazine from December 2021 to February 2022 as agreed with the Leyland Market Manager,08/12/2021,0000473414,280.00,Revenue,Ribble Publications Ltd,0
South Ribble Borough Council,http://statistics.data.gov.uk/id/local-authority/30UE,Central Support Services,Photocopier Lease Rental,4036,EQV5 office suit,15/12/2021,0000473455,"8,898.96",Revenue,RICOH (UK) LTD,0
South Ribble Borough Council,http://statistics.data.gov.uk/id/local-authority/30UE,Economic Development,Miscellaneous Expenses,4851,"Leyland Christmas Festival - 27 November 2021, 2x COREX SIGN SALE, advance warning signs to be installed before your event",22/12/2021,0000474283,776.00,Revenue,Road Safety Services LTD,0
South Ribble Borough Council,http://statistics.data.gov.uk/id/local-authority/30UE,Capital,Cap Contract Payment,C230,"Project � Mckenzie ArmsWorks -  Provision of Stage 2 (updated) services as per NAME REDACTED Value -  26,430.12",22/12/2021,0000473936,"26,430.12",Revenue,RP Tyson Construction Ltd,0
South Ribble Borough Council,http://statistics.data.gov.uk/id/local-authority/30UE,Open Spaces,External Contractors Charges,4570,Works at Barn Hey Pond off Leyland Lane. Remove all trees/self seeded/saplings from within the fenced area around the pond,08/12/2021,0000473208,"1,740.00",Revenue,RUSS ASPINALL T/A BEARDWOOD TREE SERVICE,0
South Ribble Borough Council,http://statistics.data.gov.uk/id/local-authority/30UE,Open Spaces,External Contractors Charges,4570,Removal of 1 x ash tree at the frontage of ADDRESS REDACTED,01/12/2021,0000473534,920.00,Revenue,RUSS ASPINALL T/A BEARDWOOD TREE SERVICE,0
South Ribble Borough Council,http://statistics.data.gov.uk/id/local-authority/30UE,Short Term Debtors,Amount Paid,0030,Professional fees for works in relation to Leyland test track,08/12/2021,0000473793,"2,279.17",Revenue,Sanderson Weatherall LLP,0
South Ribble Borough Council,http://statistics.data.gov.uk/id/local-authority/30UE,Building Control,Refunded Income,485R,Refund of Building Control Fees,10/12/2021,0000473943,480.00,Revenue,NAME REDACTED,0
South Ribble Borough Council,http://statistics.data.gov.uk/id/local-authority/30UE,Surplus or Deficit on Trading,Electricity,2303,19/8/21 to 10/11/21,01/12/2021,0000473448,"2,436.93",Revenue,SCOTTISH HYDRO ELECTRIC,0
South Ribble Borough Council,http://statistics.data.gov.uk/id/local-authority/30UE,Surplus or Deficit on Trading,Climate Change Levy,2307,CCL,01/12/2021,0000473448,67.95,Revenue,SCOTTISH HYDRO ELECTRIC,0
South Ribble Borough Council,http://statistics.data.gov.uk/id/local-authority/30UE,Central Support Services,Agency Staff,1121,COST OF ENGAGING AGENCY LOCUM SOLICITOR FOR 4 DAYS PER WEEK FROM 7 SEPTEMBER 2021 UNTIL CHRISTMAS 2021,01/12/2021,0000473541,"2,023.50",Revenue,SELLICK PARTNERSHIP LTD,0
South Ribble Borough Council,http://statistics.data.gov.uk/id/local-authority/30UE,Central Support Services,Agency Staff,1121,COST OF ENGAGING AGENCY LOCUM SOLICITOR FOR 4 DAYS PER WEEK FROM 7 SEPTEMBER 2021 UNTIL CHRISTMAS 2021,01/12/2021,0000473757,"2,132.94",Revenue,SELLICK PARTNERSHIP LTD,0
South Ribble Borough Council,http://statistics.data.gov.uk/id/local-authority/30UE,Central Support Services,Agency Staff,1121,COST OF ENGAGING AGENCY LOCUM SOLICITOR FOR 4 DAYS PER WEEK FROM 7 SEPTEMBER 2021 UNTIL CHRISTMAS 2021,10/12/2021,0000473912,"1,862.19",Revenue,SELLICK PARTNERSHIP LTD,0
South Ribble Borough Council,http://statistics.data.gov.uk/id/local-authority/30UE,Central Support Services,Agency Staff,1121,COST OF ENGAGING AGENCY LOCUM SOLICITOR FOR 4 DAYS PER WEEK FROM 7 SEPTEMBER 2021 UNTIL CHRISTMAS 2021,22/12/2021,0000474140,"1,634.19",Revenue,SELLICK PARTNERSHIP LTD,0
South Ribble Borough Council,http://statistics.data.gov.uk/id/local-authority/30UE,Recreation & Sport,Miscellaneous Expenses,4851,For the agreed percentage costs of Penwortham Priory car park repair work,15/12/2021,0000473888,"2,162.75",Revenue,SERCO LEISURE (OP) LTD,0
South Ribble Borough Council,http://statistics.data.gov.uk/id/local-authority/30UE,Community Development,Professional Fees,4510,"4 hour workshop, political literacy course",15/12/2021,0000474020,800.00,Revenue,ShoutOutUK Ltd,0
South Ribble Borough Council,http://statistics.data.gov.uk/id/local-authority/30UE,Short Term Creditors,Amount Paid,0030,monthly deds from payroll,10/12/2021,0000473639,"1,403.92",Revenue,SOUTH RIBBLE LABOUR PARTY LOCAL GOVERNM,0
South Ribble Borough Council,http://statistics.data.gov.uk/id/local-authority/30UE,Central Support Services,Hiring Expenses,3212,Hire of VIN REDACTED from 15.10.21-11.11.21 for 4 weeks,01/12/2021,0000473618,"3,000.00",Revenue,Southfield RCV Services Limited,0
South Ribble Borough Council,http://statistics.data.gov.uk/id/local-authority/30UE,Central Support Services,External Contractors Charges,4570,Spec Repair VO65KPZ JFC17618,01/12/2021,0000473619,"1,570.38",Revenue,Southfield RCV Services Limited,0
South Ribble Borough Council,http://statistics.data.gov.uk/id/local-authority/30UE,Central Support Services,External Contractors Charges,4570,Spec Repair VU60HLE JFC17614,01/12/2021,0000473621,328.46,Revenue,Southfield RCV Services Limited,0
South Ribble Borough Council,http://statistics.data.gov.uk/id/local-authority/30UE,Central Support Services,Hiring Expenses,3212,Hire of VIN REDACTED 1.11.21-12.11.21 for 2 weeks,01/12/2021,0000473622,"1,500.00",Revenue,Southfield RCV Services Limited,0
South Ribble Borough Council,http://statistics.data.gov.uk/id/local-authority/30UE,Recreation & Sport,Maintenance & Repair,4013,Leisure Centre Sports hall equipment service,15/12/2021,0000471490,490.00,Revenue,Sportsafe UK Ltd,0
South Ribble Borough Council,http://statistics.data.gov.uk/id/local-authority/30UE,Recreation & Sport,Maintenance & Repair,4013,Table Tennis table service,15/12/2021,0000471490,12.00,Revenue,Sportsafe UK Ltd,0
South Ribble Borough Council,http://statistics.data.gov.uk/id/local-authority/30UE,Short Term Creditors,Amount Paid,0030,deds from payroll,10/12/2021,0000473638,403.62,Revenue,ST CATHERINES HOSPICE PROMOTIONS LTD,0
South Ribble Borough Council,http://statistics.data.gov.uk/id/local-authority/30UE,Service Management & Support,Diesel Fuel,3132,"17000 litres @ 117.78 ppl into the feeder tank at Unit 81 Bison Place, Moss Side",01/12/2021,0000473575,"20,067.36",Revenue,Standard Fuel Oils LtdMain,0
South Ribble Borough Council,http://statistics.data.gov.uk/id/local-authority/30UE,Service Management & Support,Diesel Fuel,3132,"17000 litres diesel @ 114.21ppl into the feeder tank at Unit 81 Bison Place, Moss Side",08/12/2021,0000473798,"19,415.70",Revenue,Standard Fuel Oils LtdMain,0
South Ribble Borough Council,http://statistics.data.gov.uk/id/local-authority/30UE,Service Management & Support,Diesel Fuel,3132,"16,000 litres diesel @ 110.71ppl into the feeder tank at Unit 81 Bison Place, Moss side",22/12/2021,0000474175,"17,802.17",Revenue,Standard Fuel Oils LtdMain,0
South Ribble Borough Council,http://statistics.data.gov.uk/id/local-authority/30UE,Capital,Cap Contract Payment,C230,"Project Management,construction of the new Playing pitch, Bamber Bridge Leisure Centre, support the preparation for delivery of Development",08/12/2021,0000473799,"4,000.00",Revenue,Steve Wells Associates Ltd,0
South Ribble Borough Council,http://statistics.data.gov.uk/id/local-authority/30UE,Capital,Cap Contract Payment,C230,"Provision of Mechanical, Electrical and Plumbing Services to RIBA Stage 3 for the Leyland Town Deal Development",08/12/2021,0000473763,"34,655.00",Revenue,STEVEN A HUNT & ASSOCIATES LTD,0
South Ribble Borough Council,http://statistics.data.gov.uk/id/local-authority/30UE,Capital,Cap Contract Payment,C230,"Proposed architectural services, fees are based on the RIBA - Leyland Leisure Centre, Bamber Bridge Leisure Centre as per NAME REDACTED",22/12/2021,0000474174,"6,000.00",Revenue,studio-LADY-Ltd,0
South Ribble Borough Council,http://statistics.data.gov.uk/id/local-authority/30UE,Democratic Represent and  Mgnt,Civic & Remembrance Day,463A,Carved Buffet for 75 for the Mayoral Celebration event on Friday 19 November 2021 as discussed with NAME REDACTED,22/12/2021,0000473724,"1,121.25",Revenue,Style Catering,0
South Ribble Borough Council,http://statistics.data.gov.uk/id/local-authority/30UE,Democratic Represent and  Mgnt,Civic & Remembrance Day,463A,Hot Pot and Butter Pie for Remembrance Sunday on 14 November 2021 as discussed with NAME REDACTED,08/12/2021,0000473725,877.80,Revenue,Style Catering,0
South Ribble Borough Council,http://statistics.data.gov.uk/id/local-authority/30UE,Democratic Represent and  Mgnt,External Catering Charges,4575,Lunch boxes for Full Council 24 th Nov 2021,22/12/2021,0000473735,329.40,Revenue,Style Catering,0
South Ribble Borough Council,http://statistics.data.gov.uk/id/local-authority/30UE,Economic Development,Miscellaneous Expenses,4851,Staff Thank You events - 3 & 11 November 2021 160 buffet boxes @ 5.49 each = 878.40 + VAT,08/12/2021,0000473762,878.40,Revenue,Style Catering,0
South Ribble Borough Council,http://statistics.data.gov.uk/id/local-authority/30UE,Community Development,Miscellaneous Expenses,4851,Buffet lunch for 12 people for 13-16 September 2021,08/12/2021,0000473838,263.52,Revenue,Style Catering,0
South Ribble Borough Council,http://statistics.data.gov.uk/id/local-authority/30UE,Community Development,Cost of Food,4310,To provide catering for the Mental Health Awareness course 4-7 October as per discussed and agreed and including delivery to Civic Centre,08/12/2021,0000473839,475.32,Revenue,Style Catering,0
South Ribble Borough Council,http://statistics.data.gov.uk/id/local-authority/30UE,Community Development,Miscellaneous Expenses,4851,Provide catering for event on Thursday 14th October at Civic Centre. Provide 71 of the East Meets West boxes at 5.99 each.,08/12/2021,0000473840,425.29,Revenue,Style Catering,0
South Ribble Borough Council,http://statistics.data.gov.uk/id/local-authority/30UE,Central Support Services,Reactive Repair & Maintenance,2020,Call out for temperamental contact blocks that engineer mentioned on his last service visit. As per NAME REDACTED request,22/12/2021,0000474280,450.00,Revenue,STYLE MOVEABLE PARTITION SPECIALISTS,0
South Ribble Borough Council,http://statistics.data.gov.uk/id/local-authority/30UE,Economic Development,Miscellaneous Expenses,4851,Santa's Grotto Inflatable Grotto Hire (Silver) x 1 Saturday 27 November 2021. 11:30 - 19:00,10/12/2021,0000473578,935.00,Revenue,SUNSHINE EVENTS UK LTD T/A The Fun Experts,0
South Ribble Borough Council,http://statistics.data.gov.uk/id/local-authority/30UE,Open Spaces,GM Refurbishment,4657,Spare parts for Kingsfold Drive and Higher Walton Playgrounds as per quotation ref. CG070921.,08/12/2021,0000473564,"2,165.15",Revenue,SUTCLIFFE PLAY LTD,0
South Ribble Borough Council,http://statistics.data.gov.uk/id/local-authority/30UE,Open Spaces,GM Refurbishment,4657,x2 Flexi Ropes as per quotation ref. CG150921F. Total cost 791.78.,22/12/2021,0000473885,791.78,Revenue,SUTCLIFFE PLAY LTD,0
South Ribble Borough Council,http://statistics.data.gov.uk/id/local-authority/30UE,Building Control,Refunded Income,485R,refund ADDRESS REDACTED,10/12/2021,0000473166,400.00,Revenue,NAME REDACTED,0
South Ribble Borough Council,http://statistics.data.gov.uk/id/local-authority/30UE,Central Support Services,Materials General,4040,"8 Slide Bearings, 2 Pins, 4 Rose Bearings VU58 JXK JFC17582",22/12/2021,0000474266,282.96,Revenue,Taylor Enginering & Fabrications Ltd,0
South Ribble Borough Council,http://statistics.data.gov.uk/id/local-authority/30UE,Central Support Services,Materials General,4040,1 x potentiometer VX18KL JFC17652,22/12/2021,0000474109,626.88,Revenue,TERBERG MATEC UK LTD,0
South Ribble Borough Council,http://statistics.data.gov.uk/id/local-authority/30UE,Central Support Services,Materials General,4040,1 x potentiometer 1 x lead VX18KLC JFC17652,22/12/2021,0000474220,632.93,Revenue,TERBERG MATEC UK LTD,0
South Ribble Borough Council,http://statistics.data.gov.uk/id/local-authority/30UE,Central Support Services,Reactive Repair & Maintenance,2020,Please replace the battery pack to the door at the Civic Centre as detailed in your quotation ref QU009401,15/12/2021,0000474054,309.00,Revenue,THE AUTOMATIC DOOR COMPANY LTD,0
South Ribble Borough Council,http://statistics.data.gov.uk/id/local-authority/30UE,Capital,Cap Contract Payment,C230,"Landscape Architect Design Services (Stages 1-2) for the delivery of an Extra Care Facility, West Paddock, Leyland",22/12/2021,0000473676,"5,215.00",Revenue,The Environment Partnership (TEP) Limited,0
South Ribble Borough Council,http://statistics.data.gov.uk/id/local-authority/30UE,Central Support Services,Software Licensing,4243,"TNPSMS-1000 - SMS Credits (1,000 block), Option 2: 5000 credits 004 TNPSMS-5K - SMS Credits (5,000 block)",22/12/2021,0000473498,305.00,Revenue,The Networking People (TNP) Ltd,0
South Ribble Borough Council,http://statistics.data.gov.uk/id/local-authority/30UE,Central Support Services,Agency Staff,1121,"For Agency Staff, NAME REDACTED Total Price: 22,680 including fees excluding VAT",01/12/2021,0000473537,"1,960.00",Revenue,The Oyster Partnership,0
South Ribble Borough Council,http://statistics.data.gov.uk/id/local-authority/30UE,Central Support Services,Agency Staff,1121,"For Agency Staff, NAME REDACTED Total Price: 22,680 including fees excluding VAT",10/12/2021,0000473887,"1,400.00",Revenue,The Oyster Partnership,0
South Ribble Borough Council,http://statistics.data.gov.uk/id/local-authority/30UE,Central Support Services,Agency Staff,1121,"For Agency Staff, NAME REDACTED Total Price: 22,680 including fees excluding VAT",15/12/2021,0000474041,"1,400.00",Revenue,The Oyster Partnership,0
South Ribble Borough Council,http://statistics.data.gov.uk/id/local-authority/30UE,Capital,Cap Contract Payment,C230,2 Additional Sets - Leyland Town Deal 28x Printed A1 correx fluted boards,15/12/2021,0000474011,930.00,Revenue,The Print Quarter,0
South Ribble Borough Council,http://statistics.data.gov.uk/id/local-authority/30UE,Central Support Services,Occupational Health,1408,6 x SESSIONS OF THERAPY FOR NAME REDACTED,15/12/2021,0000474094,560.00,Revenue,THE THERAPY COMPANY,0
South Ribble Borough Council,http://statistics.data.gov.uk/id/local-authority/30UE,Central Support Services,Reference Books,4142,practical release 75,08/12/2021,0000473616,628.00,Revenue,THOMSON REUTERS,0
South Ribble Borough Council,http://statistics.data.gov.uk/id/local-authority/30UE,Central Support Services,Reference Books,4142,practical release 74,08/12/2021,0000473617,628.00,Revenue,THOMSON REUTERS,0
South Ribble Borough Council,http://statistics.data.gov.uk/id/local-authority/30UE,Central Support Services,Electricity,2303,22/10 to 23/11/21,10/12/2021,0000473816,"1,930.49",Revenue,Total Gas & power Ltd,0
South Ribble Borough Council,http://statistics.data.gov.uk/id/local-authority/30UE,Central Support Services,Electricity,2303,1/11 to 30/11/21,15/12/2021,0000473948,"4,060.38",Revenue,Total Gas & power Ltd,0
South Ribble Borough Council,http://statistics.data.gov.uk/id/local-authority/30UE,Development Control,Consultancy Fees,4541,"Penwortham Mills Planning consultancy work - formulating overage mechanism, for helping formulate the overage mechanism with SRBC legal",08/12/2021,0000473733,"6,250.00",Revenue,Trebbi Continuum Limited,0
South Ribble Borough Council,http://statistics.data.gov.uk/id/local-authority/30UE,Development Control,Consultancy Fees,4541,Viability in Planning Worden Gardens S106 Advice,08/12/2021,0000473903,"1,500.00",Revenue,Trebbi Continuum Limited,0
South Ribble Borough Council,http://statistics.data.gov.uk/id/local-authority/30UE,Central Support Services,External Contractors Charges,4570,Gear box reconditioned BJ66 MKL JFC 17524,08/12/2021,0000473567,475.00,Revenue,Truck Transmissions Ltd,0
South Ribble Borough Council,http://statistics.data.gov.uk/id/local-authority/30UE,Central Support Services,UK Healthcare,1710,,10/12/2021,0000473819,"1,542.54",Revenue,UK healthcare (BDHSC),0
South Ribble Borough Council,http://statistics.data.gov.uk/id/local-authority/30UE,Central Support Services,UK Healthcare,1710,dec 2021,10/12/2021,0000473820,"1,542.55",Revenue,UK healthcare (BDHSC),0
South Ribble Borough Council,http://statistics.data.gov.uk/id/local-authority/30UE,Economic Development,Miscellaneous Expenses,4851,"Leyland Lights Switch On, 45sqm Trailer Stage (8m wide x 6m deep x 1m high), Ground Stacked PA PackageLarge PA System on PA Wings",10/12/2021,0000473921,"5,350.00",Revenue,UK Media Events Ltd,0
South Ribble Borough Council,http://statistics.data.gov.uk/id/local-authority/30UE,Open Spaces,Plants Trees & Shrubs,4046,17 x 10kg bags of Narcissus straight yellow,15/12/2021,0000473883,204.00,Revenue,Vans Dutch Bulbs Company Ltd,0
South Ribble Borough Council,http://statistics.data.gov.uk/id/local-authority/30UE,Open Spaces,Plants Trees & Shrubs,4046,Narcissus Topolino bulbs,15/12/2021,0000473883,110.00,Revenue,Vans Dutch Bulbs Company Ltd,0
South Ribble Borough Council,http://statistics.data.gov.uk/id/local-authority/30UE,Open Spaces,Plants Trees & Shrubs,4046,Crocus tomassinianus bulbs,15/12/2021,0000473883,14.00,Revenue,Vans Dutch Bulbs Company Ltd,0
South Ribble Borough Council,http://statistics.data.gov.uk/id/local-authority/30UE,Open Spaces,Plants Trees & Shrubs,4046,Hycinthoides non scriptus bulbs-,15/12/2021,0000473883,55.00,Revenue,Vans Dutch Bulbs Company Ltd,0
South Ribble Borough Council,http://statistics.data.gov.uk/id/local-authority/30UE,Open Spaces,Plants Trees & Shrubs,4046,"spring bedding plants and bulbs for delivery week commencing Monday 4th October 2021, Contact should be made with NAME REDACTED",01/12/2021,0000473467,"2,345.23",Revenue,Walkers Nurseries Chester Ltd,0
South Ribble Borough Council,http://statistics.data.gov.uk/id/local-authority/30UE,Economic Development,Water Charges(Metered),2511,9/8 to 8/11/21,01/12/2021,0000473449,435.54,Revenue,WATER PLUS,0
South Ribble Borough Council,http://statistics.data.gov.uk/id/local-authority/30UE,Economic Development,Water Charges(Metered),2511,9/8/to 11/11/21,15/12/2021,0000473592,358.17,Revenue,WATER PLUS,0
South Ribble Borough Council,http://statistics.data.gov.uk/id/local-authority/30UE,Central Support Services,Water Charges(Metered),2511,Water Charges,08/12/2021,0000473805,"2,412.67",Revenue,WaterPlus,0
South Ribble Borough Council,http://statistics.data.gov.uk/id/local-authority/30UE,Central Support Services,Water Charges(Metered),2511,Water charges,08/12/2021,0000473806,"2,561.53",Revenue,WaterPlus,0
South Ribble Borough Council,http://statistics.data.gov.uk/id/local-authority/30UE,Open Spaces,Water Charges(Metered),2511,31/8 to 11/11/21,15/12/2021,0000473913,"2,938.94",Revenue,WaterPlus,0
South Ribble Borough Council,http://statistics.data.gov.uk/id/local-authority/30UE,Recreation & Sport,Planned Annual Repair & Maintenance,2021,"Hire of 1x anti vandal toilet unit, 1x 500 gallon effluent tank, 1x anti vandal canteen unit, Penwortham Holme as per quotation",15/12/2021,0000473907,420.00,Revenue,Wernick Hire Ltd,0
South Ribble Borough Council,http://statistics.data.gov.uk/id/local-authority/30UE,Open Spaces,GM Refurbishment,4657,Supply of Christmas Tree Lights,01/12/2021,0000473611,"1,396.14",Revenue,WESTFIELD TREE SERVICES LTD,0
South Ribble Borough Council,http://statistics.data.gov.uk/id/local-authority/30UE,Community Development,Miscellaneous Expenses,4851,To provide a Christmas tree for Leyland Cross and Gregson Lane.,08/12/2021,0000473742,"2,500.00",Revenue,WESTFIELD TREE SERVICES LTD,0
South Ribble Borough Council,http://statistics.data.gov.uk/id/local-authority/30UE,Capital,Cap Contract Payment,C230,Provision of Architect Services and Procurement Support Services to RIBA Stage 3 for the Leyland Town Deal Development,22/12/2021,0000474021,"24,608.29",Revenue,Wilson Mason LLP,0
South Ribble Borough Council,http://statistics.data.gov.uk/id/local-authority/30UE,Capital,Cap Contract Payment,C230,"OS Plan Purchase, Title Plan Overlay",15/12/2021,0000474022,"1,093.26",Revenue,Wilson Mason LLP,0
South Ribble Borough Council,http://statistics.data.gov.uk/id/local-authority/30UE,Capital,Cap Contract Payment,C230,Provision of architect services - Leyland Town Deal - BASE2 � RIBA Stage 2,15/12/2021,0000474023,"11,595.94",Revenue,Wilson Mason LLP,0
South Ribble Borough Council,http://statistics.data.gov.uk/id/local-authority/30UE,Capital,Cap Contract Payment,C230,Provision of Architect Services and Procurement Support Services to RIBA Stage 3 for the Leyland Town Deal Development,22/12/2021,0000474042,"1,912.50",Revenue,Wilson Mason LLP,0
South Ribble Borough Council,http://statistics.data.gov.uk/id/local-authority/30UE,Economic Development,Professional Fees,4510,Shop local video,22/12/2021,0000474246,900.00,Revenue,Wingate Media Limited,0
South Ribble Borough Council,http://statistics.data.gov.uk/id/local-authority/30UE,Capital,Cap Contract Payment,C230,STRUCTURAL AND DRAINAGE SERVICES TO RIBA STAGE 3 FOR THE LEYLAND TOWN DEAL DEVELOPMENT,08/12/2021,0000473766,"13,477.24",Revenue,Woolgar Hunter Limited,0
South Ribble Borough Council,http://statistics.data.gov.uk/id/local-authority/30UE,Central Support Services,Software Licensing,4243,Paris special temporary license for use of our in-use on-prem software 1st April 2021-31st March 2022 50:50 split Chorley and SRBC,22/12/2021,0000474139,"2,972.66",Revenue,XLPRINT SOFTWARE,0
South Ribble Borough Council,http://statistics.data.gov.uk/id/local-authority/30UE,Central Support Services,Computer Software,4242,MEMBERSHIP RENEWAL SO014259 - REWARD LICENCE - ANNUAL CHARGES 29/092020 - 28/09/2021,15/12/2021,0000474012,"3,630.00",Revenue,ZELLIS UK LTD,0
